Publisher Label,Publisher URI,"Supplier ID","Supplier","Invoice No.","Amount £","Purpose","Transaction Number","Payment Date","Organisational Unit","Cost Centre(T)","Internal Category Number"
"Wolverhampton City Council","http://opendatacommunities.org/id/metropolitan-district-council/wolverhampton","700044","Access To Business","591","17,250.00","TPP - Social Care Support Services","130242408","06/02/2019","Enterprise","Access to Business","R5501"
"Wolverhampton City Council","http://opendatacommunities.org/id/metropolitan-district-council/wolverhampton","700110","Accordial Group (Holdings) Limited","0000005097","405.00","Equipment - R & M","130244401","22/02/2019","Learning Disability Provider","City Links","R4003"
"Wolverhampton City Council","http://opendatacommunities.org/id/metropolitan-district-council/wolverhampton","700220","THE Acme Facilities Group Ltd","AFG1902022","499.00","Equipment - Catering","130245553","27/02/2019","Catering","Education Catering - General Overheads","R4010"
"Wolverhampton City Council","http://opendatacommunities.org/id/metropolitan-district-council/wolverhampton","700220","THE Acme Facilities Group Ltd","AFG1902022","60.00","Equipment - Catering","130245553","27/02/2019","Catering","Education Catering - General Overheads","R4010"
"Wolverhampton City Council","http://opendatacommunities.org/id/metropolitan-district-council/wolverhampton","700220","THE Acme Facilities Group Ltd","AFG1901049","693.00","Equipment - Catering","130244874","27/02/2019","Catering","Education Catering - General Overheads","R4010"
"Wolverhampton City Council","http://opendatacommunities.org/id/metropolitan-district-council/wolverhampton","700264","Acorn Environmental Mgt Group Limited","12281","2,182.74","Grounds Maintenance - Contract","130243967","20/02/2019","Environmental Maintenance","Arbor Scheme","R2075"
"Wolverhampton City Council","http://opendatacommunities.org/id/metropolitan-district-council/wolverhampton","700264","Acorn Environmental Mgt Group Limited","12240","1,173.58","Grounds Maintenance - Contract","130242300","06/02/2019","Environmental Maintenance","Arbor Scheme","R2075"
"Wolverhampton City Council","http://opendatacommunities.org/id/metropolitan-district-council/wolverhampton","700264","Acorn Environmental Mgt Group Limited","12245","12,220.98","Grounds Maintenance - Contract","130242687","08/02/2019","Environmental Maintenance","Arbor Scheme","R2075"
"Wolverhampton City Council","http://opendatacommunities.org/id/metropolitan-district-council/wolverhampton","700264","Acorn Environmental Mgt Group Limited","12246","661.80","Grounds Maintenance - Contract","130242688","08/02/2019","Environmental Maintenance","Arbor Scheme","R2075"
"Wolverhampton City Council","http://opendatacommunities.org/id/metropolitan-district-council/wolverhampton","700264","Acorn Environmental Mgt Group Limited","12311","4,720.00","Grounds Maintenance - Contract","130244405","22/02/2019","Environmental Maintenance","Ground Maintenance Overheads","R2075"
"Wolverhampton City Council","http://opendatacommunities.org/id/metropolitan-district-council/wolverhampton","700264","Acorn Environmental Mgt Group Limited","12298","579.56","Grounds Maintenance - Contract","130244403","27/02/2019","Environmental Maintenance","Arbor Scheme","R2075"
"Wolverhampton City Council","http://opendatacommunities.org/id/metropolitan-district-council/wolverhampton","700264","Acorn Environmental Mgt Group Limited","12310","376.52","Grounds Maintenance - Contract","130244404","27/02/2019","Environmental Maintenance","Arbor Scheme","R2075"
"Wolverhampton City Council","http://opendatacommunities.org/id/metropolitan-district-council/wolverhampton","700341","Acs Business Supplies Limited","SINV00502305","105.57","Stationery","130242875","27/02/2019","Governance Services","Business Support (Corporate Admin Review)","R4308"
"Wolverhampton City Council","http://opendatacommunities.org/id/metropolitan-district-council/wolverhampton","700341","Acs Business Supplies Limited","SINV00501784","89.99","Marketing \ Non-staff advertising","130242872","27/02/2019","Corporate Communications","Communications & Marketing - General","R4317"
"Wolverhampton City Council","http://opendatacommunities.org/id/metropolitan-district-council/wolverhampton","700341","Acs Business Supplies Limited","SINV00495990","30.56","Stationery","130240176","13/02/2019","Governance Services","Business Support (Corporate Admin Review)","R4308"
"Wolverhampton City Council","http://opendatacommunities.org/id/metropolitan-district-council/wolverhampton","700341","Acs Business Supplies Limited","SINV00481748","10.87","Stationery","130233637","13/02/2019","Fleet Services","Fleet Management","R4308"
"Wolverhampton City Council","http://opendatacommunities.org/id/metropolitan-district-council/wolverhampton","700341","Acs Business Supplies Limited","SINV00496797","35.96","Stationery","130240460","06/02/2019","Governance Services","Business Support (Corporate Admin Review)","R4308"
"Wolverhampton City Council","http://opendatacommunities.org/id/metropolitan-district-council/wolverhampton","700341","Acs Business Supplies Limited","SINV00497123","24.99","Stationery","130240462","06/02/2019","Procurement Services","Corporate Procurement Unit","R4308"
"Wolverhampton City Council","http://opendatacommunities.org/id/metropolitan-district-council/wolverhampton","700341","Acs Business Supplies Limited","SINV00497536","19.26","Stationery","130240879","06/02/2019","Governance Services","Business Support (Corporate Admin Review)","R4308"
"Wolverhampton City Council","http://opendatacommunities.org/id/metropolitan-district-council/wolverhampton","700341","Acs Business Supplies Limited","SINV00499478","65.74","Stationery","130241629","13/02/2019","School Planning & Resources","Music Support Team","R4308"
"Wolverhampton City Council","http://opendatacommunities.org/id/metropolitan-district-council/wolverhampton","700341","Acs Business Supplies Limited","SINV00500970","123.60","Stationery","130242412","20/02/2019","Adult Education","Service Wide","R4308"
"Wolverhampton City Council","http://opendatacommunities.org/id/metropolitan-district-council/wolverhampton","700341","Acs Business Supplies Limited","SINV00500718","137.84","Stationery","130242410","20/02/2019","Governance Services","Business Support (Corporate Admin Review)","R4308"
"Wolverhampton City Council","http://opendatacommunities.org/id/metropolitan-district-council/wolverhampton","700341","Acs Business Supplies Limited","SINV00500640","18.73","Stationery","130242301","20/02/2019","Governance Services","Business Support (Corporate Admin Review)","R4308"
"Wolverhampton City Council","http://opendatacommunities.org/id/metropolitan-district-council/wolverhampton","700341","Acs Business Supplies Limited","SINV00500969","445.50","Stationery","130242411","20/02/2019","ICTS","Document Centre - General","R4308"
"Wolverhampton City Council","http://opendatacommunities.org/id/metropolitan-district-council/wolverhampton","700341","Acs Business Supplies Limited","SINV00499356","133.19","Stationery","130241624","13/02/2019","Children & Young People In Care","Fostering Team & Allowances","R4308"
"Wolverhampton City Council","http://opendatacommunities.org/id/metropolitan-district-council/wolverhampton","700341","Acs Business Supplies Limited","SCRN00060738","-18.73","Stationery","130243586","20/02/2019","Governance Services","Business Support (Corporate Admin Review)","R4308"
"Wolverhampton City Council","http://opendatacommunities.org/id/metropolitan-district-council/wolverhampton","700341","Acs Business Supplies Limited","SINV00496798","18.73","Stationery","130240461","06/02/2019","Governance Services","Business Support (Corporate Admin Review)","R4308"
"Wolverhampton City Council","http://opendatacommunities.org/id/metropolitan-district-council/wolverhampton","700341","Acs Business Supplies Limited","SINV00499357","68.99","Stationery","130241625","13/02/2019","Governance Services","Business Support (Corporate Admin Review)","R4308"
"Wolverhampton City Council","http://opendatacommunities.org/id/metropolitan-district-council/wolverhampton","700341","Acs Business Supplies Limited","SINV00499477","74.25","Stationery","130241628","13/02/2019","Governance Services","Business Support (Corporate Admin Review)","R4308"
"Wolverhampton City Council","http://opendatacommunities.org/id/metropolitan-district-council/wolverhampton","700341","Acs Business Supplies Limited","SINV00499476","173.98","Stationery","130241627","13/02/2019","Specialist Support","Upper Pendeford Farm Short Breaks Centre","R4308"
"Wolverhampton City Council","http://opendatacommunities.org/id/metropolitan-district-council/wolverhampton","700341","Acs Business Supplies Limited","SINV00499510","0.50","Stationery","130241630","13/02/2019","Governance Services","Business Support (Corporate Admin Review)","R4308"
"Wolverhampton City Council","http://opendatacommunities.org/id/metropolitan-district-council/wolverhampton","700341","Acs Business Supplies Limited","SINV00499510","15.61","Stationery","130241630","13/02/2019","Governance Services","Business Support (Corporate Admin Review)","R4308"
"Wolverhampton City Council","http://opendatacommunities.org/id/metropolitan-district-council/wolverhampton","700341","Acs Business Supplies Limited","SINV00498292","12.64","Stationery","130241211","13/02/2019","Strengthening Families","CP Area 5-Whitemore Reans","R4308"
"Wolverhampton City Council","http://opendatacommunities.org/id/metropolitan-district-council/wolverhampton","700341","Acs Business Supplies Limited","SINV00440872RE-ISSUE","61.28","Stationery","130244184","27/02/2019","Strengthening Families","EI Area 5 - Whitmore Reans","R4308"
"Wolverhampton City Council","http://opendatacommunities.org/id/metropolitan-district-council/wolverhampton","700341","Acs Business Supplies Limited","SINV00498419","34.88","Stationery","130241212","13/02/2019","Governance Services","Business Support (Corporate Admin Review)","R4308"
"Wolverhampton City Council","http://opendatacommunities.org/id/metropolitan-district-council/wolverhampton","700341","Acs Business Supplies Limited","SINV00460495","86.75","Stationery","130224658","13/02/2019","Strengthening Families","CP Area 1 - Eastfield","R4308"
"Wolverhampton City Council","http://opendatacommunities.org/id/metropolitan-district-council/wolverhampton","700341","Acs Business Supplies Limited","SINV00472652","32.54","Stationery","130229604","13/02/2019","Fleet Services","Fleet Management","R4308"
"Wolverhampton City Council","http://opendatacommunities.org/id/metropolitan-district-council/wolverhampton","700341","Acs Business Supplies Limited","SINV00501783","89.99","Marketing \ Non-staff advertising","130243128","27/02/2019","Corporate Communications","Communications & Marketing - General","R4317"
"Wolverhampton City Council","http://opendatacommunities.org/id/metropolitan-district-council/wolverhampton","700341","Acs Business Supplies Limited","SINV00495149","44.64","Stationery","130239045","27/02/2019","Adult Education","Service Wide","R4308"
"Wolverhampton City Council","http://opendatacommunities.org/id/metropolitan-district-council/wolverhampton","700550","Actso Limited","2245","120.00","Subscriptions","130240463","27/02/2019","Public Protection","Trading Standards","R4701"
"Wolverhampton City Council","http://opendatacommunities.org/id/metropolitan-district-council/wolverhampton","700663","Partisip8/P Sicilia","759","990.00","TPP - Maintenance Contractor - General","190567069","27/02/2019","Transportation","Cycling Schemes - Bikeability","R5720"
"Wolverhampton City Council","http://opendatacommunities.org/id/metropolitan-district-council/wolverhampton","700663","Partisip8/P Sicilia","759/1","135.00","Services - Professional Fees","190567070","27/02/2019","Transportation","Travelwise","R4400"
"Wolverhampton City Council","http://opendatacommunities.org/id/metropolitan-district-council/wolverhampton","700715","Adoption Matters Northwest","190912","357.72","Direct Work With Children","130242876","27/02/2019","Children & Young People In Care","Adoption Support Fund","R6310"
"Wolverhampton City Council","http://opendatacommunities.org/id/metropolitan-district-council/wolverhampton","700715","Adoption Matters Northwest","190912","364.53","Direct Work With Children","130242876","27/02/2019","Children & Young People In Care","Adoption and Residence Team & Allowances","R6310"
"Wolverhampton City Council","http://opendatacommunities.org/id/metropolitan-district-council/wolverhampton","700715","Adoption Matters Northwest","190586","86.40","Direct Work With Children","130241835","13/02/2019","Children & Young People In Care","Adoption Support Fund","R6310"
"Wolverhampton City Council","http://opendatacommunities.org/id/metropolitan-district-council/wolverhampton","700715","Adoption Matters Northwest","190746","1,086.46","Direct Work With Children","130241836","13/02/2019","Children & Young People In Care","Adoption Support Fund","R6310"
"Wolverhampton City Council","http://opendatacommunities.org/id/metropolitan-district-council/wolverhampton","700715","Adoption Matters Northwest","190911","359.50","Direct Work With Children","130244751","27/02/2019","Children & Young People In Care","Adoption Support Fund","R6310"
"Wolverhampton City Council","http://opendatacommunities.org/id/metropolitan-district-council/wolverhampton","700715","Adoption Matters Northwest","190598","2,122.25","Direct Work With Children","130242413","06/02/2019","Children & Young People In Care","Adoption Support Fund","R6310"
"Wolverhampton City Council","http://opendatacommunities.org/id/metropolitan-district-council/wolverhampton","700715","Adoption Matters Northwest","190887","322.93","Direct Work With Children","130241631","20/02/2019","Children & Young People In Care","Adoption Support Fund","R6310"
"Wolverhampton City Council","http://opendatacommunities.org/id/metropolitan-district-council/wolverhampton","700726","Adoption U.K.","400317","52.00","Subscriptions","130244753","27/02/2019","Children & Young People In Care","Adoption and Residence Team & Allowances","R4701"
"Wolverhampton City Council","http://opendatacommunities.org/id/metropolitan-district-council/wolverhampton","700761","R Millard","000054","162.50","Services - Professional Fees","190567067","27/02/2019","Transportation","Advisory Road Markings and Disabled Bays","R4400"
"Wolverhampton City Council","http://opendatacommunities.org/id/metropolitan-district-council/wolverhampton","700770","Adt Fire And Security PLC","37492364-02","316.92","Fixtures and Fittings - R&M","130242109","08/02/2019","Maintenance Programme","Centralised R&M","R2502"
"Wolverhampton City Council","http://opendatacommunities.org/id/metropolitan-district-council/wolverhampton","700770","Adt Fire And Security PLC","36760156-02","306.20","Fixtures and Fittings - R&M","130242105","08/02/2019","Maintenance Programme","Centralised R&M","R2502"
"Wolverhampton City Council","http://opendatacommunities.org/id/metropolitan-district-council/wolverhampton","700770","Adt Fire And Security PLC","36976477-02","63.00","Fixtures and Fittings - R&M","130242107","08/02/2019","Maintenance Programme","Centralised R&M","R2502"
"Wolverhampton City Council","http://opendatacommunities.org/id/metropolitan-district-council/wolverhampton","700770","Adt Fire And Security PLC","38262314-02","-1,031.73","Fixtures and Fittings - R&M","130238535","13/02/2019","Maintenance Programme","Centralised R&M","R2502"
"Wolverhampton City Council","http://opendatacommunities.org/id/metropolitan-district-council/wolverhampton","700770","Adt Fire And Security PLC","36302194-02","172.00","Services - Security","130242416","15/02/2019","Maintenance Programme","Centralised R&M","R4405"
"Wolverhampton City Council","http://opendatacommunities.org/id/metropolitan-district-council/wolverhampton","700770","Adt Fire And Security PLC","40450442-02","74.44","Fixtures and Fittings - R&M","130241634","15/02/2019","Maintenance Programme","Centralised R&M","R2502"
"Wolverhampton City Council","http://opendatacommunities.org/id/metropolitan-district-council/wolverhampton","700770","Adt Fire And Security PLC","36302193-02","204.00","Services - Security","130242415","15/02/2019","Maintenance Programme","Centralised R&M","R4405"
"Wolverhampton City Council","http://opendatacommunities.org/id/metropolitan-district-council/wolverhampton","700770","Adt Fire And Security PLC","39489436-02","45.86","Services - Security","130241633","27/02/2019","Maintenance Programme","Centralised R&M","R4405"
"Wolverhampton City Council","http://opendatacommunities.org/id/metropolitan-district-council/wolverhampton","700770","Adt Fire And Security PLC","39489436-02","12.14","Services - Security","130241633","27/02/2019","Maintenance Programme","Centralised R&M","R4405"
"Wolverhampton City Council","http://opendatacommunities.org/id/metropolitan-district-council/wolverhampton","700770","Adt Fire And Security PLC","34781710-02","149.00","Services - Security","130242414","08/02/2019","Maintenance Programme","Centralised R&M","R4405"
"Wolverhampton City Council","http://opendatacommunities.org/id/metropolitan-district-council/wolverhampton","700770","Adt Fire And Security PLC","40450440-02","89.21","Fixtures and Fittings - R&M","130241526","15/02/2019","Maintenance Programme","Centralised R&M","R2502"
"Wolverhampton City Council","http://opendatacommunities.org/id/metropolitan-district-council/wolverhampton","700770","Adt Fire And Security PLC","40466045-02","155.00","Services - Security","130241109","13/02/2019","Maintenance Programme","Centralised R&M","R4405"
"Wolverhampton City Council","http://opendatacommunities.org/id/metropolitan-district-council/wolverhampton","700770","Adt Fire And Security PLC","40450439-02","93.52","Fixtures and Fittings - R&M","130241525","15/02/2019","Maintenance Programme","Centralised R&M","R2502"
"Wolverhampton City Council","http://opendatacommunities.org/id/metropolitan-district-council/wolverhampton","700770","Adt Fire And Security PLC","40450443-02","90.37","Fixtures and Fittings - R&M","130241528","15/02/2019","Maintenance Programme","Centralised R&M","R2502"
"Wolverhampton City Council","http://opendatacommunities.org/id/metropolitan-district-council/wolverhampton","700770","Adt Fire And Security PLC","40450441-02","68.91","Fixtures and Fittings - R&M","130241527","15/02/2019","Maintenance Programme","Centralised R&M","R2502"
"Wolverhampton City Council","http://opendatacommunities.org/id/metropolitan-district-council/wolverhampton","700770","Adt Fire And Security PLC","40450444-02","65.30","Fixtures and Fittings - R&M","130241529","15/02/2019","Maintenance Programme","Centralised R&M","R2502"
"Wolverhampton City Council","http://opendatacommunities.org/id/metropolitan-district-council/wolverhampton","700770","Adt Fire And Security PLC","38011376-02","458.10","Services - Security","130242541","15/02/2019","Maintenance Programme","Centralised R&M","R4405"
"Wolverhampton City Council","http://opendatacommunities.org/id/metropolitan-district-council/wolverhampton","700770","Adt Fire And Security PLC","37134502-02","844.55","Fixtures and Fittings - R&M","130242108","22/02/2019","Maintenance Programme","Centralised R&M","R2502"
"Wolverhampton City Council","http://opendatacommunities.org/id/metropolitan-district-council/wolverhampton","700770","Adt Fire And Security PLC","37985066-02","694.08","Fixtures and Fittings - R&M","130222597","22/02/2019","Maintenance Programme","Centralised R&M","R2502"
"Wolverhampton City Council","http://opendatacommunities.org/id/metropolitan-district-council/wolverhampton","700770","Adt Fire And Security PLC","38262322-02","-599.28","Fixtures and Fittings - R&M","130241966","22/02/2019","Maintenance Programme","Centralised R&M","R2502"
"Wolverhampton City Council","http://opendatacommunities.org/id/metropolitan-district-council/wolverhampton","700979","Af Blakemore/Blakemore Foodservice","WCC000477","473.69","Provisions (Resale)","130242689","27/02/2019","Catering","Meals on Wheels","R4102"
"Wolverhampton City Council","http://opendatacommunities.org/id/metropolitan-district-council/wolverhampton","700979","Af Blakemore/Blakemore Foodservice","6013340","36.68","Provisions (Resale)","130245405","27/02/2019","Visitor Economy","Bantock - Tea Rooms","R4102"
"Wolverhampton City Council","http://opendatacommunities.org/id/metropolitan-district-council/wolverhampton","700979","Af Blakemore/Blakemore Foodservice","6180790","184.18","Provisions (Resale)","130245447","27/02/2019","Visitor Economy","Bantock - Tea Rooms","R4102"
"Wolverhampton City Council","http://opendatacommunities.org/id/metropolitan-district-council/wolverhampton","700979","Af Blakemore/Blakemore Foodservice","5918436","45.91","Provisions (Resale)","130245402","27/02/2019","Visitor Economy","Bantock - Tea Rooms","R4102"
"Wolverhampton City Council","http://opendatacommunities.org/id/metropolitan-district-council/wolverhampton","700979","Af Blakemore/Blakemore Foodservice","6190620","70.99","Provisions (Resale)","130245454","27/02/2019","Visitor Economy","Bantock - Tea Rooms","R4102"
"Wolverhampton City Council","http://opendatacommunities.org/id/metropolitan-district-council/wolverhampton","700979","Af Blakemore/Blakemore Foodservice","6090400","182.84","Provisions (Not for resale)","130245413","27/02/2019","Older People Provider Services","Bradley Lodge Resource Centre","R4101"
"Wolverhampton City Council","http://opendatacommunities.org/id/metropolitan-district-council/wolverhampton","700979","Af Blakemore/Blakemore Foodservice","WCC000483","218.23","Provisions (Resale)","130242695","27/02/2019","Catering","West Park Tea Room","R4102"
"Wolverhampton City Council","http://opendatacommunities.org/id/metropolitan-district-council/wolverhampton","700979","Af Blakemore/Blakemore Foodservice","5977846","5.66","Provisions (Resale)","130225570","13/02/2019","Markets","Shopmobility","R4102"
"Wolverhampton City Council","http://opendatacommunities.org/id/metropolitan-district-council/wolverhampton","700979","Af Blakemore/Blakemore Foodservice","WCC000466","115.94","Provisions (Not for resale)","130240368","06/02/2019","Leisure Services","WV Active Catering - Central","R4101"
"Wolverhampton City Council","http://opendatacommunities.org/id/metropolitan-district-council/wolverhampton","700979","Af Blakemore/Blakemore Foodservice","WCC000466","439.39","Provisions (Not for resale)","130240368","06/02/2019","Leisure Services","WV Active Catering - Central","R4101"
"Wolverhampton City Council","http://opendatacommunities.org/id/metropolitan-district-council/wolverhampton","700979","Af Blakemore/Blakemore Foodservice","WCC000465","860.17","Provisions (Not for resale)","130240367","06/02/2019","Leisure Services","Bert Williams Leisure Centre Caf�","R4101"
"Wolverhampton City Council","http://opendatacommunities.org/id/metropolitan-district-council/wolverhampton","700979","Af Blakemore/Blakemore Foodservice","WCC000465","366.68","Provisions (Not for resale)","130240367","06/02/2019","Leisure Services","Bert Williams Leisure Centre Caf�","R4101"
"Wolverhampton City Council","http://opendatacommunities.org/id/metropolitan-district-council/wolverhampton","700979","Af Blakemore/Blakemore Foodservice","WCA000061","3,599.49","Provisions (Not for resale)","130240365","06/02/2019","Leisure Services","WV Active Catering","R4101"
"Wolverhampton City Council","http://opendatacommunities.org/id/metropolitan-district-council/wolverhampton","700979","Af Blakemore/Blakemore Foodservice","WCA000061","289.64","Provisions (Not for resale)","130240365","06/02/2019","Leisure Services","WV Active Catering","R4101"
"Wolverhampton City Council","http://opendatacommunities.org/id/metropolitan-district-council/wolverhampton","700979","Af Blakemore/Blakemore Foodservice","WCC000464","15.98","Provisions (Not for resale)","130240366","06/02/2019","Leisure Services","Bert Williams Leisure Centre Caf�","R4101"
"Wolverhampton City Council","http://opendatacommunities.org/id/metropolitan-district-council/wolverhampton","700979","Af Blakemore/Blakemore Foodservice","WCC000464","222.33","Provisions (Not for resale)","130240366","06/02/2019","Leisure Services","Bert Williams Leisure Centre Caf�","R4101"
"Wolverhampton City Council","http://opendatacommunities.org/id/metropolitan-district-council/wolverhampton","700979","Af Blakemore/Blakemore Foodservice","WCC000481","321.30","Provisions (Resale)","130242693","27/02/2019","Catering","West Park Tea Room","R4102"
"Wolverhampton City Council","http://opendatacommunities.org/id/metropolitan-district-council/wolverhampton","700979","Af Blakemore/Blakemore Foodservice","WCC000471","1,042.49","Provisions (Not for resale)","130242422","27/02/2019","Leisure Services","Bert Williams Leisure Centre Caf�","R4101"
"Wolverhampton City Council","http://opendatacommunities.org/id/metropolitan-district-council/wolverhampton","700979","Af Blakemore/Blakemore Foodservice","6157834","137.24","Provisions (Resale)","130245431","27/02/2019","Visitor Economy","Bantock - Tea Rooms","R4102"
"Wolverhampton City Council","http://opendatacommunities.org/id/metropolitan-district-council/wolverhampton","700979","Af Blakemore/Blakemore Foodservice","WCA000062","735.69","Provisions (Not for resale)","130242417","27/02/2019","Leisure Services","WV Active Catering","R4101"
"Wolverhampton City Council","http://opendatacommunities.org/id/metropolitan-district-council/wolverhampton","700979","Af Blakemore/Blakemore Foodservice","WCC000470","571.77","Provisions (Resale)","130242421","27/02/2019","Catering","Civic Centre Catering","R4102"
"Wolverhampton City Council","http://opendatacommunities.org/id/metropolitan-district-council/wolverhampton","700979","Af Blakemore/Blakemore Foodservice","WCC000467","33,443.06","Provisions (Resale)","130242418","27/02/2019","Catering","Education Catering - General Overheads","R4102"
"Wolverhampton City Council","http://opendatacommunities.org/id/metropolitan-district-council/wolverhampton","700979","Af Blakemore/Blakemore Foodservice","6172270","169.20","Provisions (Resale)","130245444","27/02/2019","Visitor Economy","Bantock - Tea Rooms","R4102"
"Wolverhampton City Council","http://opendatacommunities.org/id/metropolitan-district-council/wolverhampton","700979","Af Blakemore/Blakemore Foodservice","WCC000474","60.13","Provisions (Not for resale)","130242424","27/02/2019","Leisure Services","WV Active Catering","R4101"
"Wolverhampton City Council","http://opendatacommunities.org/id/metropolitan-district-council/wolverhampton","700979","Af Blakemore/Blakemore Foodservice","WCC000473","127.87","Provisions (Not for resale)","130242423","27/02/2019","Leisure Services","Bert Williams Leisure Centre Caf�","R4101"
"Wolverhampton City Council","http://opendatacommunities.org/id/metropolitan-district-council/wolverhampton","700979","Af Blakemore/Blakemore Foodservice","WCC000469","5,138.99","Provisions (Resale)","130242420","27/02/2019","Catering","Civic Centre Catering","R4102"
"Wolverhampton City Council","http://opendatacommunities.org/id/metropolitan-district-council/wolverhampton","700979","Af Blakemore/Blakemore Foodservice","WCC000468","46,399.46","Provisions (Resale)","130242419","27/02/2019","Catering","Education Catering - General Overheads","R4102"
"Wolverhampton City Council","http://opendatacommunities.org/id/metropolitan-district-council/wolverhampton","700979","Af Blakemore/Blakemore Foodservice","6168378","139.48","Provisions (Not for resale)","130241970","08/02/2019","Older People Provider Services","Blakenhall Resource Centre","R4101"
"Wolverhampton City Council","http://opendatacommunities.org/id/metropolitan-district-council/wolverhampton","700979","Af Blakemore/Blakemore Foodservice","6135922","94.33","Provisions (Resale)","130245425","27/02/2019","Visitor Economy","Bantock - Tea Rooms","R4102"
"Wolverhampton City Council","http://opendatacommunities.org/id/metropolitan-district-council/wolverhampton","700979","Af Blakemore/Blakemore Foodservice","6164894","94.43","Provisions (Resale)","130245437","27/02/2019","Visitor Economy","Bantock - Tea Rooms","R4102"
"Wolverhampton City Council","http://opendatacommunities.org/id/metropolitan-district-council/wolverhampton","700979","Af Blakemore/Blakemore Foodservice","WCC000475","680.74","Provisions (Not for resale)","130242425","27/02/2019","Leisure Services","WV Active Catering - Central","R4101"
"Wolverhampton City Council","http://opendatacommunities.org/id/metropolitan-district-council/wolverhampton","701100","Aggregate Industries UK Limited","27730475","1,147.64","Materials","130242112","20/02/2019","Highways Maintenance","Patching","R4007"
"Wolverhampton City Council","http://opendatacommunities.org/id/metropolitan-district-council/wolverhampton","701155","Aidapt Bathrooms Limited","385680","61.88","Equipment - Purchase","130243748","13/02/2019","Older People Provider Services","ILS Stores","R4000"
"Wolverhampton City Council","http://opendatacommunities.org/id/metropolitan-district-council/wolverhampton","701155","Aidapt Bathrooms Limited","254289","1,592.00","Equipment - Purchase","130134110","22/02/2019","Independent Living Service","Independent Living Service","R4000"
"Wolverhampton City Council","http://opendatacommunities.org/id/metropolitan-district-council/wolverhampton","701166","Aidservice Limited","92594","148.00","Equipment - Purchase","130227148","22/02/2019","Independent Living Service","Independent Living Service","R4000"
"Wolverhampton City Council","http://opendatacommunities.org/id/metropolitan-district-council/wolverhampton","701166","Aidservice Limited","92594","15.00","Equipment - Purchase","130227148","22/02/2019","Independent Living Service","Independent Living Service","R4000"
"Wolverhampton City Council","http://opendatacommunities.org/id/metropolitan-district-council/wolverhampton","701210","Air Methods Limited","SI005772","273.21","Equipment - R & M","130244886","22/02/2019","Older People Provider Services","ILS Stores","R4003"
"Wolverhampton City Council","http://opendatacommunities.org/id/metropolitan-district-council/wolverhampton","701210","Air Methods Limited","SI006734","173.20","Materials","190562063","15/02/2019","Fleet Services","Fleet Management","R4007"
"Wolverhampton City Council","http://opendatacommunities.org/id/metropolitan-district-council/wolverhampton","701265","Airport Express West Midlands Limited","1821","1,520.00","Client Transport","130242698","06/02/2019","Special Educational Needs","Secondary- Transport","R3042"
"Wolverhampton City Council","http://opendatacommunities.org/id/metropolitan-district-council/wolverhampton","701276","Airport-Link","BDW137","1,887.08","Client Transport","130242699","06/02/2019","Special Educational Needs","Special - Transport","R3042"
"Wolverhampton City Council","http://opendatacommunities.org/id/metropolitan-district-council/wolverhampton","701397","Aldridge Trimming","33358","260.00","Equipment - Purchase","190562047","15/02/2019","Fleet Services","Fleet Management","R4000"
"Wolverhampton City Council","http://opendatacommunities.org/id/metropolitan-district-council/wolverhampton","701397","Aldridge Trimming","33836","220.00","Equipment - Purchase","190567389","27/02/2019","Fleet Services","Fleet Management","R4000"
"Wolverhampton City Council","http://opendatacommunities.org/id/metropolitan-district-council/wolverhampton","701427","Allday Time Systems Limited","97436","28.95","Equipment - Purchase","130242426","27/02/2019","Bereavement Services","Cemeteries","R4000"
"Wolverhampton City Council","http://opendatacommunities.org/id/metropolitan-district-council/wolverhampton","701427","Allday Time Systems Limited","97436","12.75","Equipment - Purchase","130242426","27/02/2019","Bereavement Services","Cemeteries","R4000"
"Wolverhampton City Council","http://opendatacommunities.org/id/metropolitan-district-council/wolverhampton","701427","Allday Time Systems Limited","97436","41.00","Equipment - Purchase","130242426","27/02/2019","Bereavement Services","Cemeteries","R4000"
"Wolverhampton City Council","http://opendatacommunities.org/id/metropolitan-district-council/wolverhampton","701430","Allen-Martin Conservation Limited","37376","275.00","R&M - Departmental planned (external)","130243749","20/02/2019","Maintenance Programme","Centralised R&M","R2001"
"Wolverhampton City Council","http://opendatacommunities.org/id/metropolitan-district-council/wolverhampton","701437","Allsorts Office Supplies Limited","709915","126.00","Furniture","130243131","08/02/2019","Customer Services","City Direct","R4004"
"Wolverhampton City Council","http://opendatacommunities.org/id/metropolitan-district-council/wolverhampton","701439","Allstar Business Solutions Limited","E2010842897","233.07","Petrol","190567414","27/02/2019","Fleet Services","Fleet Management","R3000"
"Wolverhampton City Council","http://opendatacommunities.org/id/metropolitan-district-council/wolverhampton","701439","Allstar Business Solutions Limited","E2010842897","47.46","Petrol","190567414","27/02/2019","Fleet Services","Fleet Management","R3000"
"Wolverhampton City Council","http://opendatacommunities.org/id/metropolitan-district-council/wolverhampton","701439","Allstar Business Solutions Limited","E2010779575","34.21","Petrol","190558948","06/02/2019","Fleet Services","Fleet Management","R3000"
"Wolverhampton City Council","http://opendatacommunities.org/id/metropolitan-district-council/wolverhampton","701439","Allstar Business Solutions Limited","E2010779575","321.93","Petrol","190558948","06/02/2019","Fleet Services","Fleet Management","R3000"
"Wolverhampton City Council","http://opendatacommunities.org/id/metropolitan-district-council/wolverhampton","701439","Allstar Business Solutions Limited","E2010843981","111.38","Petrol","190567415","27/02/2019","Fleet Services","Fleet Management","R3000"
"Wolverhampton City Council","http://opendatacommunities.org/id/metropolitan-district-council/wolverhampton","701446","Alphabiolabs","26806","268.75","Services - Professional Fees","130243973","15/02/2019","Legal Services","Centralised External Legal Costs","R4400"
"Wolverhampton City Council","http://opendatacommunities.org/id/metropolitan-district-council/wolverhampton","701502","Andrews Creative Services","AC2019-01WCC","100.00","Services - Professional Fees","130242427","27/02/2019","Public Service Reform","Mayoral Expenses","R4400"
"Wolverhampton City Council","http://opendatacommunities.org/id/metropolitan-district-council/wolverhampton","701509","Angel Springs Limited (Waterlogic)","4695201","10.30","Provisions (Not for resale)","130243132","13/02/2019","Environmental Maintenance","Arbor Scheme","R4101"
"Wolverhampton City Council","http://opendatacommunities.org/id/metropolitan-district-council/wolverhampton","701509","Angel Springs Limited (Waterlogic)","4609280","25.00","Provisions (Not for resale)","130236748","15/02/2019","Maintenance Programme","Civic Centre Repairs & Maintenance","R4101"
"Wolverhampton City Council","http://opendatacommunities.org/id/metropolitan-district-council/wolverhampton","701509","Angel Springs Limited (Waterlogic)","4801814RE-ISSUE","300.02","Provisions (Not for resale)","130244576","27/02/2019","Fleet Services","Fleet Management","R4101"
"Wolverhampton City Council","http://opendatacommunities.org/id/metropolitan-district-council/wolverhampton","701509","Angel Springs Limited (Waterlogic)","4801126","16.20","Provisions (Not for resale)","130243388","27/02/2019","Environmental Maintenance","Arbor Scheme","R4101"
"Wolverhampton City Council","http://opendatacommunities.org/id/metropolitan-district-council/wolverhampton","701509","Angel Springs Limited (Waterlogic)","4801125","6.48","Provisions (Not for resale)","130243387","27/02/2019","Environmental Maintenance","Ground Maintenance East","R4101"
"Wolverhampton City Council","http://opendatacommunities.org/id/metropolitan-district-council/wolverhampton","701509","Angel Springs Limited (Waterlogic)","4695880","36.80","Provisions (Not for resale)","130244757","27/02/2019","Transportation","Passenger Transport - General","R4101"
"Wolverhampton City Council","http://opendatacommunities.org/id/metropolitan-district-council/wolverhampton","701509","Angel Springs Limited (Waterlogic)","4555328","25.00","Provisions (Not for resale)","130237985","06/02/2019","Maintenance Programme","Civic Centre Repairs & Maintenance","R4101"
"Wolverhampton City Council","http://opendatacommunities.org/id/metropolitan-district-council/wolverhampton","701509","Angel Springs Limited (Waterlogic)","4746759","19.44","Provisions (Not for resale)","130242881","06/02/2019","Environmental Maintenance","Arbor Scheme","R4101"
"Wolverhampton City Council","http://opendatacommunities.org/id/metropolitan-district-council/wolverhampton","701509","Angel Springs Limited (Waterlogic)","4695200","16.78","Provisions (Not for resale)","130242879","06/02/2019","Environmental Maintenance","Ground Maintenance East","R4101"
"Wolverhampton City Council","http://opendatacommunities.org/id/metropolitan-district-council/wolverhampton","701509","Angel Springs Limited (Waterlogic)","4746758","6.48","Provisions (Not for resale)","130242880","06/02/2019","Environmental Maintenance","Ground Maintenance East","R4101"
"Wolverhampton City Council","http://opendatacommunities.org/id/metropolitan-district-council/wolverhampton","701509","Angel Springs Limited (Waterlogic)","4588269","15.64","Provisions (Not for resale)","130237385","06/02/2019","Facilities Management","Victoria Square, Block 11","R4101"
"Wolverhampton City Council","http://opendatacommunities.org/id/metropolitan-district-council/wolverhampton","701509","Angel Springs Limited (Waterlogic)","4588272","13.75","Provisions (Not for resale)","130237986","06/02/2019","Maintenance Programme","Centralised R&M","R4101"
"Wolverhampton City Council","http://opendatacommunities.org/id/metropolitan-district-council/wolverhampton","701509","Angel Springs Limited (Waterlogic)","4801777","40.92","Provisions (Not for resale)","130244758","27/02/2019","Transportation","Passenger Transport - General","R4101"
"Wolverhampton City Council","http://opendatacommunities.org/id/metropolitan-district-council/wolverhampton","701509","Angel Springs Limited (Waterlogic)","4747435","16.78","Provisions (Not for resale)","130243133","08/02/2019","Licensing","Licensing - Private Hire Vehicles","R4101"
"Wolverhampton City Council","http://opendatacommunities.org/id/metropolitan-district-council/wolverhampton","701509","Angel Springs Limited (Waterlogic)","4747441","48.60","Provisions (Not for resale)","130243385","08/02/2019","Fleet Services","Fleet Management","R4101"
"Wolverhampton City Council","http://opendatacommunities.org/id/metropolitan-district-council/wolverhampton","701509","Angel Springs Limited (Waterlogic)","4642368","13.75","Provisions (Not for resale)","130236754","20/02/2019","Maintenance Programme","Centralised R&M","R4101"
"Wolverhampton City Council","http://opendatacommunities.org/id/metropolitan-district-council/wolverhampton","701512","Anglia Dna Services Limited","9402","122.50","Services - Professional Fees","130243750","15/02/2019","Legal Services","Centralised External Legal Costs","R4400"
"Wolverhampton City Council","http://opendatacommunities.org/id/metropolitan-district-council/wolverhampton","701512","Anglia Dna Services Limited","5867","124.67","Services - Professional Fees","130221451","20/02/2019","Legal Services","Centralised External Legal Costs","R4400"
"Wolverhampton City Council","http://opendatacommunities.org/id/metropolitan-district-council/wolverhampton","701512","Anglia Dna Services Limited","9239","370.00","Services - Professional Fees","130242702","15/02/2019","Legal Services","Centralised External Legal Costs","R4400"
"Wolverhampton City Council","http://opendatacommunities.org/id/metropolitan-district-council/wolverhampton","701512","Anglia Dna Services Limited","9098","100.00","Services - Professional Fees","130242701","13/02/2019","Legal Services","Centralised External Legal Costs","R4400"
"Wolverhampton City Council","http://opendatacommunities.org/id/metropolitan-district-council/wolverhampton","701545","Apcoa Parking (UK) Limited","272118","48,043.59","TPP - Traffic Management","130239679","06/02/2019","Parking Services","Parking Enforcement","R5050"
"Wolverhampton City Council","http://opendatacommunities.org/id/metropolitan-district-council/wolverhampton","701547","Apetito Limited","9002576953","810.95","Provisions (Resale)","130240616","20/02/2019","Catering","Meals on Wheels","R4102"
"Wolverhampton City Council","http://opendatacommunities.org/id/metropolitan-district-council/wolverhampton","701547","Apetito Limited","9002598208","338.07","Provisions (Resale)","130243000","27/02/2019","Catering","Meals on Wheels","R4102"
"Wolverhampton City Council","http://opendatacommunities.org/id/metropolitan-district-council/wolverhampton","701547","Apetito Limited","9002598208","1,109.00","Provisions (Resale)","130243000","27/02/2019","Catering","Meals on Wheels","R4102"
"Wolverhampton City Council","http://opendatacommunities.org/id/metropolitan-district-council/wolverhampton","701547","Apetito Limited","9002603610","-29.92","Provisions (Resale)","130243974","27/02/2019","Catering","Meals on Wheels","R4102"
"Wolverhampton City Council","http://opendatacommunities.org/id/metropolitan-district-council/wolverhampton","701547","Apetito Limited","9002588024","275.28","Provisions (Resale)","130241972","13/02/2019","Catering","Meals on Wheels","R4102"
"Wolverhampton City Council","http://opendatacommunities.org/id/metropolitan-district-council/wolverhampton","701547","Apetito Limited","9002588024","1,132.04","Provisions (Resale)","130241972","13/02/2019","Catering","Meals on Wheels","R4102"
"Wolverhampton City Council","http://opendatacommunities.org/id/metropolitan-district-council/wolverhampton","701547","Apetito Limited","9002591092","1,109.00","Provisions (Resale)","130242113","20/02/2019","Catering","Meals on Wheels","R4102"
"Wolverhampton City Council","http://opendatacommunities.org/id/metropolitan-district-council/wolverhampton","701547","Apetito Limited","9002584065","121.80","Provisions (Resale)","130241531","13/02/2019","Catering","Meals on Wheels","R4102"
"Wolverhampton City Council","http://opendatacommunities.org/id/metropolitan-district-council/wolverhampton","701547","Apetito Limited","9002584066","122.88","Provisions (Resale)","130241532","13/02/2019","Catering","Meals on Wheels","R4102"
"Wolverhampton City Council","http://opendatacommunities.org/id/metropolitan-district-council/wolverhampton","701547","Apetito Limited","9002581077","87.43","Provisions (Resale)","130241215","06/02/2019","Catering","Meals on Wheels","R4102"
"Wolverhampton City Council","http://opendatacommunities.org/id/metropolitan-district-council/wolverhampton","701547","Apetito Limited","9002581077","1,244.11","Provisions (Resale)","130241215","06/02/2019","Catering","Meals on Wheels","R4102"
"Wolverhampton City Council","http://opendatacommunities.org/id/metropolitan-district-council/wolverhampton","701547","Apetito Limited","9002584064","1,221.17","Provisions (Resale)","130241530","13/02/2019","Catering","Meals on Wheels","R4102"
"Wolverhampton City Council","http://opendatacommunities.org/id/metropolitan-district-council/wolverhampton","701547","Apetito Limited","9002595308","458.17","Provisions (Resale)","130242704","20/02/2019","Catering","Meals on Wheels","R4102"
"Wolverhampton City Council","http://opendatacommunities.org/id/metropolitan-district-council/wolverhampton","701547","Apetito Limited","9002595308","833.72","Provisions (Resale)","130242704","20/02/2019","Catering","Meals on Wheels","R4102"
"Wolverhampton City Council","http://opendatacommunities.org/id/metropolitan-district-council/wolverhampton","701547","Apetito Limited","9002595307","29.20","Provisions (Resale)","130242703","20/02/2019","Catering","Meals on Wheels","R4102"
"Wolverhampton City Council","http://opendatacommunities.org/id/metropolitan-district-council/wolverhampton","701564","AQA Education","64103625","311.40","Exam Expenses (Non-Employee)","130242543","06/02/2019","Adult Education","Discretionary Fund","R4630"
"Wolverhampton City Council","http://opendatacommunities.org/id/metropolitan-district-council/wolverhampton","701564","AQA Education","10327485","148.05","Exam Expenses (Non-Employee)","130242542","06/02/2019","Adult Education","Discretionary Fund","R4630"
"Wolverhampton City Council","http://opendatacommunities.org/id/metropolitan-district-council/wolverhampton","701595","Argus Fire Protection Co.Limited","43029","600.00","Equipment - Purchase","130241837","13/02/2019","Maintenance Programme","Civic Centre Repairs & Maintenance","R4000"
"Wolverhampton City Council","http://opendatacommunities.org/id/metropolitan-district-council/wolverhampton","701603","Arnold Clark Finance Limited","HI2478898","60.48","Hire of Vehicles","190560422","13/02/2019","Fleet Services","Fleet Management","R3200"
"Wolverhampton City Council","http://opendatacommunities.org/id/metropolitan-district-council/wolverhampton","701603","Arnold Clark Finance Limited","HI2482391","61.84","Hire of Vehicles","190560429","13/02/2019","Fleet Services","Fleet Management","R3200"
"Wolverhampton City Council","http://opendatacommunities.org/id/metropolitan-district-council/wolverhampton","701603","Arnold Clark Finance Limited","HI2488106","60.90","Hire of Vehicles","190560451","13/02/2019","Fleet Services","Fleet Management","R3200"
"Wolverhampton City Council","http://opendatacommunities.org/id/metropolitan-district-council/wolverhampton","701603","Arnold Clark Finance Limited","HI2484849","81.25","Hire of Vehicles","190560436","13/02/2019","Fleet Services","Fleet Management","R3200"
"Wolverhampton City Council","http://opendatacommunities.org/id/metropolitan-district-council/wolverhampton","701603","Arnold Clark Finance Limited","HI2484855","81.25","Hire of Vehicles","190560439","13/02/2019","Fleet Services","Fleet Management","R3200"
"Wolverhampton City Council","http://opendatacommunities.org/id/metropolitan-district-council/wolverhampton","701603","Arnold Clark Finance Limited","HI2488108","81.25","Hire of Vehicles","190560453","13/02/2019","Fleet Services","Fleet Management","R3200"
"Wolverhampton City Council","http://opendatacommunities.org/id/metropolitan-district-council/wolverhampton","701603","Arnold Clark Finance Limited","HI2488866","83.94","Hire of Vehicles","190560467","13/02/2019","Fleet Services","Fleet Management","R3200"
"Wolverhampton City Council","http://opendatacommunities.org/id/metropolitan-district-council/wolverhampton","701603","Arnold Clark Finance Limited","HI2483596","36.24","Hire of Vehicles","190560433","13/02/2019","Fleet Services","Fleet Management","R3200"
"Wolverhampton City Council","http://opendatacommunities.org/id/metropolitan-district-council/wolverhampton","701603","Arnold Clark Finance Limited","HI2483596","47.02","Hire of Vehicles","190560433","13/02/2019","Fleet Services","Fleet Management","R3200"
"Wolverhampton City Council","http://opendatacommunities.org/id/metropolitan-district-council/wolverhampton","701603","Arnold Clark Finance Limited","HI2482137","100.80","Hire of Vehicles","190560427","13/02/2019","Fleet Services","Fleet Management","R3200"
"Wolverhampton City Council","http://opendatacommunities.org/id/metropolitan-district-council/wolverhampton","701603","Arnold Clark Finance Limited","HI2484854","100.80","Hire of Vehicles","190560438","13/02/2019","Fleet Services","Fleet Management","R3200"
"Wolverhampton City Council","http://opendatacommunities.org/id/metropolitan-district-council/wolverhampton","701603","Arnold Clark Finance Limited","HI2486214","83.76","Hire of Vehicles","190560444","13/02/2019","Fleet Services","Fleet Management","R3200"
"Wolverhampton City Council","http://opendatacommunities.org/id/metropolitan-district-council/wolverhampton","701603","Arnold Clark Finance Limited","HI2486214","23.15","Hire of Vehicles","190560444","13/02/2019","Fleet Services","Fleet Management","R3200"
"Wolverhampton City Council","http://opendatacommunities.org/id/metropolitan-district-council/wolverhampton","701603","Arnold Clark Finance Limited","HI2488107","100.80","Hire of Vehicles","190560452","13/02/2019","Fleet Services","Fleet Management","R3200"
"Wolverhampton City Council","http://opendatacommunities.org/id/metropolitan-district-council/wolverhampton","701603","Arnold Clark Finance Limited","HI2478855","324.24","Hire of Vehicles","190560421","13/02/2019","Fleet Services","Fleet Management","R3200"
"Wolverhampton City Council","http://opendatacommunities.org/id/metropolitan-district-council/wolverhampton","701603","Arnold Clark Finance Limited","HI2474752","324.24","Hire of Vehicles","190560412","13/02/2019","Fleet Services","Fleet Management","R3200"
"Wolverhampton City Council","http://opendatacommunities.org/id/metropolitan-district-council/wolverhampton","701603","Arnold Clark Finance Limited","HI2487578","23.25","Hire of Vehicles","190560450","13/02/2019","Fleet Services","Fleet Management","R3200"
"Wolverhampton City Council","http://opendatacommunities.org/id/metropolitan-district-council/wolverhampton","701603","Arnold Clark Finance Limited","HI2487578","41.43","Hire of Vehicles","190560450","13/02/2019","Fleet Services","Fleet Management","R3200"
"Wolverhampton City Council","http://opendatacommunities.org/id/metropolitan-district-council/wolverhampton","701603","Arnold Clark Finance Limited","HI2485021","324.24","Hire of Vehicles","190560443","13/02/2019","Fleet Services","Fleet Management","R3200"
"Wolverhampton City Council","http://opendatacommunities.org/id/metropolitan-district-council/wolverhampton","701603","Arnold Clark Finance Limited","HI2488829","48.75","Hire of Vehicles","190560459","13/02/2019","Fleet Services","Fleet Management","R3200"
"Wolverhampton City Council","http://opendatacommunities.org/id/metropolitan-district-council/wolverhampton","701603","Arnold Clark Finance Limited","HI2488829","20.84","Hire of Vehicles","190560459","13/02/2019","Fleet Services","Fleet Management","R3200"
"Wolverhampton City Council","http://opendatacommunities.org/id/metropolitan-district-council/wolverhampton","701603","Arnold Clark Finance Limited","HI2482147","46.50","Hire of Vehicles","190560428","13/02/2019","Fleet Services","Fleet Management","R3200"
"Wolverhampton City Council","http://opendatacommunities.org/id/metropolitan-district-council/wolverhampton","701603","Arnold Clark Finance Limited","HI2478054","16.25","Hire of Vehicles","190560417","13/02/2019","Fleet Services","Fleet Management","R3200"
"Wolverhampton City Council","http://opendatacommunities.org/id/metropolitan-district-council/wolverhampton","701603","Arnold Clark Finance Limited","HI2488111","195.86","Hire of Vehicles","190560455","13/02/2019","Fleet Services","Fleet Management","R3200"
"Wolverhampton City Council","http://opendatacommunities.org/id/metropolitan-district-council/wolverhampton","701603","Arnold Clark Finance Limited","HI2488831","18.12","Hire of Vehicles","190560460","13/02/2019","Fleet Services","Fleet Management","R3200"
"Wolverhampton City Council","http://opendatacommunities.org/id/metropolitan-district-council/wolverhampton","701603","Arnold Clark Finance Limited","HI2488847","16.25","Hire of Vehicles","190560462","13/02/2019","Fleet Services","Fleet Management","R3200"
"Wolverhampton City Council","http://opendatacommunities.org/id/metropolitan-district-council/wolverhampton","701603","Arnold Clark Finance Limited","HI2478053","20.16","Hire of Vehicles","190560416","13/02/2019","Fleet Services","Fleet Management","R3200"
"Wolverhampton City Council","http://opendatacommunities.org/id/metropolitan-district-council/wolverhampton","701603","Arnold Clark Finance Limited","HI2478307","20.16","Hire of Vehicles","190560418","13/02/2019","Fleet Services","Fleet Management","R3200"
"Wolverhampton City Council","http://opendatacommunities.org/id/metropolitan-district-council/wolverhampton","701603","Arnold Clark Finance Limited","HI2484860","23.25","Hire of Vehicles","190560441","13/02/2019","Fleet Services","Fleet Management","R3200"
"Wolverhampton City Council","http://opendatacommunities.org/id/metropolitan-district-council/wolverhampton","701603","Arnold Clark Finance Limited","HI2484860","7.34","Hire of Vehicles","190560441","13/02/2019","Fleet Services","Fleet Management","R3200"
"Wolverhampton City Council","http://opendatacommunities.org/id/metropolitan-district-council/wolverhampton","701603","Arnold Clark Finance Limited","HI2487577","18.12","Hire of Vehicles","190560449","13/02/2019","Fleet Services","Fleet Management","R3200"
"Wolverhampton City Council","http://opendatacommunities.org/id/metropolitan-district-council/wolverhampton","701603","Arnold Clark Finance Limited","HI2487577","10.15","Hire of Vehicles","190560449","13/02/2019","Fleet Services","Fleet Management","R3200"
"Wolverhampton City Council","http://opendatacommunities.org/id/metropolitan-district-council/wolverhampton","701603","Arnold Clark Finance Limited","HI2486742","18.12","Hire of Vehicles","190560448","13/02/2019","Fleet Services","Fleet Management","R3200"
"Wolverhampton City Council","http://opendatacommunities.org/id/metropolitan-district-council/wolverhampton","701603","Arnold Clark Finance Limited","HI2486742","10.08","Hire of Vehicles","190560448","13/02/2019","Fleet Services","Fleet Management","R3200"
"Wolverhampton City Council","http://opendatacommunities.org/id/metropolitan-district-council/wolverhampton","701603","Arnold Clark Finance Limited","HI2483559","23.25","Hire of Vehicles","190560432","13/02/2019","Fleet Services","Fleet Management","R3200"
"Wolverhampton City Council","http://opendatacommunities.org/id/metropolitan-district-council/wolverhampton","701603","Arnold Clark Finance Limited","HI2483557","23.25","Hire of Vehicles","190560431","13/02/2019","Fleet Services","Fleet Management","R3200"
"Wolverhampton City Council","http://opendatacommunities.org/id/metropolitan-district-council/wolverhampton","701603","Arnold Clark Finance Limited","HI2488813","23.25","Hire of Vehicles","190560457","13/02/2019","Fleet Services","Fleet Management","R3200"
"Wolverhampton City Council","http://opendatacommunities.org/id/metropolitan-district-council/wolverhampton","701603","Arnold Clark Finance Limited","HI2488859","27.98","Hire of Vehicles","190560464","13/02/2019","Fleet Services","Fleet Management","R3200"
"Wolverhampton City Council","http://opendatacommunities.org/id/metropolitan-district-council/wolverhampton","701603","Arnold Clark Finance Limited","HI2488864","27.98","Hire of Vehicles","190560466","13/02/2019","Fleet Services","Fleet Management","R3200"
"Wolverhampton City Council","http://opendatacommunities.org/id/metropolitan-district-council/wolverhampton","701603","Arnold Clark Finance Limited","HI2488827","30.00","Hire of Vehicles","190560458","13/02/2019","Fleet Services","Fleet Management","R3200"
"Wolverhampton City Council","http://opendatacommunities.org/id/metropolitan-district-council/wolverhampton","701603","Arnold Clark Finance Limited","HI2491430","81.25","Hire of Vehicles","190566355","27/02/2019","Fleet Services","Fleet Management","R3200"
"Wolverhampton City Council","http://opendatacommunities.org/id/metropolitan-district-council/wolverhampton","701603","Arnold Clark Finance Limited","HI2491427","60.90","Hire of Vehicles","190566353","27/02/2019","Fleet Services","Fleet Management","R3200"
"Wolverhampton City Council","http://opendatacommunities.org/id/metropolitan-district-council/wolverhampton","701603","Arnold Clark Finance Limited","HI2491077","23.25","Hire of Vehicles","190566350","27/02/2019","Fleet Services","Fleet Management","R3200"
"Wolverhampton City Council","http://opendatacommunities.org/id/metropolitan-district-council/wolverhampton","701603","Arnold Clark Finance Limited","HI2491077","52.61","Hire of Vehicles","190566350","27/02/2019","Fleet Services","Fleet Management","R3200"
"Wolverhampton City Council","http://opendatacommunities.org/id/metropolitan-district-council/wolverhampton","701603","Arnold Clark Finance Limited","HI2491432","36.24","Hire of Vehicles","190566357","27/02/2019","Fleet Services","Fleet Management","R3200"
"Wolverhampton City Council","http://opendatacommunities.org/id/metropolitan-district-council/wolverhampton","701603","Arnold Clark Finance Limited","HI2491432","45.96","Hire of Vehicles","190566357","27/02/2019","Fleet Services","Fleet Management","R3200"
"Wolverhampton City Council","http://opendatacommunities.org/id/metropolitan-district-council/wolverhampton","701603","Arnold Clark Finance Limited","HI2494596","18.12","Hire of Vehicles","190566363","27/02/2019","Fleet Services","Fleet Management","R3200"
"Wolverhampton City Council","http://opendatacommunities.org/id/metropolitan-district-council/wolverhampton","701603","Arnold Clark Finance Limited","HI2494596","36.69","Hire of Vehicles","190566363","27/02/2019","Fleet Services","Fleet Management","R3200"
"Wolverhampton City Council","http://opendatacommunities.org/id/metropolitan-district-council/wolverhampton","701603","Arnold Clark Finance Limited","HI2491431","139.90","Hire of Vehicles","190566356","27/02/2019","Fleet Services","Fleet Management","R3200"
"Wolverhampton City Council","http://opendatacommunities.org/id/metropolitan-district-council/wolverhampton","701603","Arnold Clark Finance Limited","HI2491425","139.90","Hire of Vehicles","190566352","27/02/2019","Fleet Services","Fleet Management","R3200"
"Wolverhampton City Council","http://opendatacommunities.org/id/metropolitan-district-council/wolverhampton","701603","Arnold Clark Finance Limited","HI2491428","100.80","Hire of Vehicles","190566354","27/02/2019","Fleet Services","Fleet Management","R3200"
"Wolverhampton City Council","http://opendatacommunities.org/id/metropolitan-district-council/wolverhampton","701603","Arnold Clark Finance Limited","HI2493745","46.50","Hire of Vehicles","190566362","27/02/2019","Fleet Services","Fleet Management","R3200"
"Wolverhampton City Council","http://opendatacommunities.org/id/metropolitan-district-council/wolverhampton","701603","Arnold Clark Finance Limited","HI2493745","27.73","Hire of Vehicles","190566362","27/02/2019","Fleet Services","Fleet Management","R3200"
"Wolverhampton City Council","http://opendatacommunities.org/id/metropolitan-district-council/wolverhampton","701603","Arnold Clark Finance Limited","HI2491434","18.12","Hire of Vehicles","190566358","27/02/2019","Fleet Services","Fleet Management","R3200"
"Wolverhampton City Council","http://opendatacommunities.org/id/metropolitan-district-council/wolverhampton","701603","Arnold Clark Finance Limited","HI2491434","25.89","Hire of Vehicles","190566358","27/02/2019","Fleet Services","Fleet Management","R3200"
"Wolverhampton City Council","http://opendatacommunities.org/id/metropolitan-district-council/wolverhampton","701603","Arnold Clark Finance Limited","HI2491078","41.88","Hire of Vehicles","190566351","27/02/2019","Fleet Services","Fleet Management","R3200"
"Wolverhampton City Council","http://opendatacommunities.org/id/metropolitan-district-council/wolverhampton","701603","Arnold Clark Finance Limited","HI2493284","39.90","Hire of Vehicles","190566361","27/02/2019","Fleet Services","Fleet Management","R3200"
"Wolverhampton City Council","http://opendatacommunities.org/id/metropolitan-district-council/wolverhampton","701603","Arnold Clark Finance Limited","HI2491438","23.25","Hire of Vehicles","190566359","27/02/2019","Fleet Services","Fleet Management","R3200"
"Wolverhampton City Council","http://opendatacommunities.org/id/metropolitan-district-council/wolverhampton","701603","Arnold Clark Finance Limited","HI2491649","324.24","Hire of Vehicles","190566360","27/02/2019","Fleet Services","Fleet Management","R3200"
"Wolverhampton City Council","http://opendatacommunities.org/id/metropolitan-district-council/wolverhampton","701603","Arnold Clark Finance Limited","HI2494597","18.12","Hire of Vehicles","190566364","27/02/2019","Fleet Services","Fleet Management","R3200"
"Wolverhampton City Council","http://opendatacommunities.org/id/metropolitan-district-council/wolverhampton","701603","Arnold Clark Finance Limited","HI2494597","12.41","Hire of Vehicles","190566364","27/02/2019","Fleet Services","Fleet Management","R3200"
"Wolverhampton City Council","http://opendatacommunities.org/id/metropolitan-district-council/wolverhampton","701603","Arnold Clark Finance Limited","HI2478901","18.12","Hire of Vehicles","190560423","13/02/2019","Fleet Services","Fleet Management","R3200"
"Wolverhampton City Council","http://opendatacommunities.org/id/metropolitan-district-council/wolverhampton","701603","Arnold Clark Finance Limited","HI2475278","139.90","Hire of Vehicles","190560413","13/02/2019","Fleet Services","Fleet Management","R3200"
"Wolverhampton City Council","http://opendatacommunities.org/id/metropolitan-district-council/wolverhampton","701603","Arnold Clark Finance Limited","HI2484013","18.12","Hire of Vehicles","190560435","13/02/2019","Fleet Services","Fleet Management","R3200"
"Wolverhampton City Council","http://opendatacommunities.org/id/metropolitan-district-council/wolverhampton","701603","Arnold Clark Finance Limited","HI2483087","18.12","Hire of Vehicles","190560430","13/02/2019","Fleet Services","Fleet Management","R3200"
"Wolverhampton City Council","http://opendatacommunities.org/id/metropolitan-district-council/wolverhampton","701603","Arnold Clark Finance Limited","HI2484858","48.72","Hire of Vehicles","190560440","13/02/2019","Fleet Services","Fleet Management","R3200"
"Wolverhampton City Council","http://opendatacommunities.org/id/metropolitan-district-council/wolverhampton","701603","Arnold Clark Finance Limited","HI2482100","139.90","Hire of Vehicles","190560425","13/02/2019","Fleet Services","Fleet Management","R3200"
"Wolverhampton City Council","http://opendatacommunities.org/id/metropolitan-district-council/wolverhampton","701603","Arnold Clark Finance Limited","HI2488852","48.75","Hire of Vehicles","190560463","13/02/2019","Fleet Services","Fleet Management","R3200"
"Wolverhampton City Council","http://opendatacommunities.org/id/metropolitan-district-council/wolverhampton","701603","Arnold Clark Finance Limited","HI2480153","23.25","Hire of Vehicles","190560424","13/02/2019","Fleet Services","Fleet Management","R3200"
"Wolverhampton City Council","http://opendatacommunities.org/id/metropolitan-district-council/wolverhampton","701603","Arnold Clark Finance Limited","HI2480153","17.67","Hire of Vehicles","190560424","13/02/2019","Fleet Services","Fleet Management","R3200"
"Wolverhampton City Council","http://opendatacommunities.org/id/metropolitan-district-council/wolverhampton","701603","Arnold Clark Finance Limited","HI2484851","139.90","Hire of Vehicles","190560437","13/02/2019","Fleet Services","Fleet Management","R3200"
"Wolverhampton City Council","http://opendatacommunities.org/id/metropolitan-district-council/wolverhampton","701603","Arnold Clark Finance Limited","HI2488110","139.90","Hire of Vehicles","190560454","13/02/2019","Fleet Services","Fleet Management","R3200"
"Wolverhampton City Council","http://opendatacommunities.org/id/metropolitan-district-council/wolverhampton","701603","Arnold Clark Finance Limited","HI2488805","41.88","Hire of Vehicles","190560456","13/02/2019","Fleet Services","Fleet Management","R3200"
"Wolverhampton City Council","http://opendatacommunities.org/id/metropolitan-district-council/wolverhampton","701603","Arnold Clark Finance Limited","HI2488920","41.88","Hire of Vehicles","190560468","13/02/2019","Fleet Services","Fleet Management","R3200"
"Wolverhampton City Council","http://opendatacommunities.org/id/metropolitan-district-council/wolverhampton","701603","Arnold Clark Finance Limited","HI2478648","40.32","Hire of Vehicles","190560420","13/02/2019","Fleet Services","Fleet Management","R3200"
"Wolverhampton City Council","http://opendatacommunities.org/id/metropolitan-district-council/wolverhampton","701603","Arnold Clark Finance Limited","HI2478052","36.24","Hire of Vehicles","190560415","13/02/2019","Fleet Services","Fleet Management","R3200"
"Wolverhampton City Council","http://opendatacommunities.org/id/metropolitan-district-council/wolverhampton","701603","Arnold Clark Finance Limited","HI2475279","36.24","Hire of Vehicles","190560414","13/02/2019","Fleet Services","Fleet Management","R3200"
"Wolverhampton City Council","http://opendatacommunities.org/id/metropolitan-district-council/wolverhampton","701603","Arnold Clark Finance Limited","HI2486215","36.24","Hire of Vehicles","190560445","13/02/2019","Fleet Services","Fleet Management","R3200"
"Wolverhampton City Council","http://opendatacommunities.org/id/metropolitan-district-council/wolverhampton","701603","Arnold Clark Finance Limited","HI2486741","23.25","Hire of Vehicles","190560447","13/02/2019","Fleet Services","Fleet Management","R3200"
"Wolverhampton City Council","http://opendatacommunities.org/id/metropolitan-district-council/wolverhampton","701603","Arnold Clark Finance Limited","HI2486741","20.01","Hire of Vehicles","190560447","13/02/2019","Fleet Services","Fleet Management","R3200"
"Wolverhampton City Council","http://opendatacommunities.org/id/metropolitan-district-council/wolverhampton","701603","Arnold Clark Finance Limited","HI2478407","18.12","Hire of Vehicles","190560419","13/02/2019","Fleet Services","Fleet Management","R3200"
"Wolverhampton City Council","http://opendatacommunities.org/id/metropolitan-district-council/wolverhampton","701603","Arnold Clark Finance Limited","HI2484012","18.12","Hire of Vehicles","190560434","13/02/2019","Fleet Services","Fleet Management","R3200"
"Wolverhampton City Council","http://opendatacommunities.org/id/metropolitan-district-council/wolverhampton","701603","Arnold Clark Finance Limited","HI2484012","36.07","Hire of Vehicles","190560434","13/02/2019","Fleet Services","Fleet Management","R3200"
"Wolverhampton City Council","http://opendatacommunities.org/id/metropolitan-district-council/wolverhampton","701603","Arnold Clark Finance Limited","HI2484862","18.12","Hire of Vehicles","190560442","13/02/2019","Fleet Services","Fleet Management","R3200"
"Wolverhampton City Council","http://opendatacommunities.org/id/metropolitan-district-council/wolverhampton","701603","Arnold Clark Finance Limited","HI2484862","37.56","Hire of Vehicles","190560442","13/02/2019","Fleet Services","Fleet Management","R3200"
"Wolverhampton City Council","http://opendatacommunities.org/id/metropolitan-district-council/wolverhampton","701603","Arnold Clark Finance Limited","HI2486216","18.12","Hire of Vehicles","190560446","13/02/2019","Fleet Services","Fleet Management","R3200"
"Wolverhampton City Council","http://opendatacommunities.org/id/metropolitan-district-council/wolverhampton","701603","Arnold Clark Finance Limited","HI2486216","17.34","Hire of Vehicles","190560446","13/02/2019","Fleet Services","Fleet Management","R3200"
"Wolverhampton City Council","http://opendatacommunities.org/id/metropolitan-district-council/wolverhampton","701603","Arnold Clark Finance Limited","HI2488842","32.50","Hire of Vehicles","190560461","13/02/2019","Fleet Services","Fleet Management","R3200"
"Wolverhampton City Council","http://opendatacommunities.org/id/metropolitan-district-council/wolverhampton","701603","Arnold Clark Finance Limited","HI2490299","18.12","Hire of Vehicles","190560469","13/02/2019","Fleet Services","Fleet Management","R3200"
"Wolverhampton City Council","http://opendatacommunities.org/id/metropolitan-district-council/wolverhampton","701603","Arnold Clark Finance Limited","HI2490299","21.10","Hire of Vehicles","190560469","13/02/2019","Fleet Services","Fleet Management","R3200"
"Wolverhampton City Council","http://opendatacommunities.org/id/metropolitan-district-council/wolverhampton","701603","Arnold Clark Finance Limited","HI2488862","55.96","Hire of Vehicles","190560465","13/02/2019","Fleet Services","Fleet Management","R3200"
"Wolverhampton City Council","http://opendatacommunities.org/id/metropolitan-district-council/wolverhampton","701603","Arnold Clark Finance Limited","HI2482109","81.25","Hire of Vehicles","190560426","13/02/2019","Fleet Services","Fleet Management","R3200"
"Wolverhampton City Council","http://opendatacommunities.org/id/metropolitan-district-council/wolverhampton","701613","Arthur Brett (Catering) Limited","ID1073548","71.32","Provisions (Resale)","130239308","27/02/2019","Older People Provider Services","Bradley Lodge Resource Centre","R4102"
"Wolverhampton City Council","http://opendatacommunities.org/id/metropolitan-district-council/wolverhampton","701613","Arthur Brett (Catering) Limited","ID1073423","84.92","Provisions (Resale)","130238747","27/02/2019","Older People Provider Services","Bradley Lodge Resource Centre","R4102"
"Wolverhampton City Council","http://opendatacommunities.org/id/metropolitan-district-council/wolverhampton","701613","Arthur Brett (Catering) Limited","ID1082107","19.28","Provisions (Resale)","130242116","06/02/2019","Visitor Economy","Bantock - Tea Rooms","R4102"
"Wolverhampton City Council","http://opendatacommunities.org/id/metropolitan-district-council/wolverhampton","701613","Arthur Brett (Catering) Limited","ID1082009","9.46","Provisions (Resale)","130242115","06/02/2019","Catering","West Park Tea Room","R4102"
"Wolverhampton City Council","http://opendatacommunities.org/id/metropolitan-district-council/wolverhampton","701613","Arthur Brett (Catering) Limited","ID1085903","5.44","Provisions (Resale)","130243753","20/02/2019","Catering","West Park Tea Room","R4102"
"Wolverhampton City Council","http://opendatacommunities.org/id/metropolitan-district-council/wolverhampton","701613","Arthur Brett (Catering) Limited","ID1081863","32.84","Provisions (Resale)","130242114","06/02/2019","Visitor Economy","Art Gallery Tea Room","R4102"
"Wolverhampton City Council","http://opendatacommunities.org/id/metropolitan-district-council/wolverhampton","701613","Arthur Brett (Catering) Limited","ID1085840","35.75","Provisions (Resale)","130243752","20/02/2019","Older People Provider Services","Blakenhall Resource Centre","R4102"
"Wolverhampton City Council","http://opendatacommunities.org/id/metropolitan-district-council/wolverhampton","701613","Arthur Brett (Catering) Limited","ID1080345","28.32","Provisions (Resale)","130241535","06/02/2019","Older People Provider Services","Blakenhall Resource Centre","R4102"
"Wolverhampton City Council","http://opendatacommunities.org/id/metropolitan-district-council/wolverhampton","701613","Arthur Brett (Catering) Limited","ID1083917","11.28","Provisions (Resale)","130243001","13/02/2019","Catering","West Park Tea Room","R4102"
"Wolverhampton City Council","http://opendatacommunities.org/id/metropolitan-district-council/wolverhampton","701613","Arthur Brett (Catering) Limited","ID1082379","89.25","Provisions (Resale)","130242544","06/02/2019","Visitor Economy","Art Gallery Tea Room","R4102"
"Wolverhampton City Council","http://opendatacommunities.org/id/metropolitan-district-council/wolverhampton","701613","Arthur Brett (Catering) Limited","ID1077449","41.26","Provisions (Resale)","130241113","22/02/2019","Older People Provider Services","Bradley Lodge Resource Centre","R4102"
"Wolverhampton City Council","http://opendatacommunities.org/id/metropolitan-district-council/wolverhampton","701613","Arthur Brett (Catering) Limited","ID1083020","123.80","Provisions (Resale)","130242705","06/02/2019","Visitor Economy","Bantock - Tea Rooms","R4102"
"Wolverhampton City Council","http://opendatacommunities.org/id/metropolitan-district-council/wolverhampton","701613","Arthur Brett (Catering) Limited","ID1083770","33.75","Provisions (Resale)","130242882","13/02/2019","Older People Provider Services","Blakenhall Resource Centre","R4102"
"Wolverhampton City Council","http://opendatacommunities.org/id/metropolitan-district-council/wolverhampton","701613","Arthur Brett (Catering) Limited","ID1085033","79.72","Provisions (Resale)","130243591","13/02/2019","Visitor Economy","Bantock - Tea Rooms","R4102"
"Wolverhampton City Council","http://opendatacommunities.org/id/metropolitan-district-council/wolverhampton","701613","Arthur Brett (Catering) Limited","ID1083774","78.48","Provisions (Resale)","130242883","13/02/2019","Visitor Economy","Art Gallery Tea Room","R4102"
"Wolverhampton City Council","http://opendatacommunities.org/id/metropolitan-district-council/wolverhampton","701613","Arthur Brett (Catering) Limited","ID1084107","99.35","Provisions (Resale)","130243002","13/02/2019","Visitor Economy","Bantock - Tea Rooms","R4102"
"Wolverhampton City Council","http://opendatacommunities.org/id/metropolitan-district-council/wolverhampton","701613","Arthur Brett (Catering) Limited","ID1086994","15.75","Provisions (Resale)","130244577","27/02/2019","Older People Provider Services","Blakenhall Resource Centre","R4102"
"Wolverhampton City Council","http://opendatacommunities.org/id/metropolitan-district-council/wolverhampton","701613","Arthur Brett (Catering) Limited","ID1087764","68.33","Provisions (Resale)","130244893","27/02/2019","Visitor Economy","Bantock - Tea Rooms","R4102"
"Wolverhampton City Council","http://opendatacommunities.org/id/metropolitan-district-council/wolverhampton","701613","Arthur Brett (Catering) Limited","ID1087690","62.58","Provisions (Resale)","130244892","27/02/2019","Visitor Economy","Art Gallery Tea Room","R4102"
"Wolverhampton City Council","http://opendatacommunities.org/id/metropolitan-district-council/wolverhampton","701613","Arthur Brett (Catering) Limited","ID1086989","51.26","Provisions (Resale)","130244413","27/02/2019","Visitor Economy","Art Gallery Tea Room","R4102"
"Wolverhampton City Council","http://opendatacommunities.org/id/metropolitan-district-council/wolverhampton","701613","Arthur Brett (Catering) Limited","ID1086514","64.02","Provisions (Resale)","130244188","27/02/2019","Visitor Economy","Art Gallery Tea Room","R4102"
"Wolverhampton City Council","http://opendatacommunities.org/id/metropolitan-district-council/wolverhampton","701613","Arthur Brett (Catering) Limited","ID1077395","38.49","Provisions (Resale)","130240617","27/02/2019","Older People Provider Services","Bradley Lodge Resource Centre","R4102"
"Wolverhampton City Council","http://opendatacommunities.org/id/metropolitan-district-council/wolverhampton","701613","Arthur Brett (Catering) Limited","ID1073366","39.27","Provisions (Resale)","130238539","27/02/2019","Older People Provider Services","Bradley Lodge Resource Centre","R4102"
"Wolverhampton City Council","http://opendatacommunities.org/id/metropolitan-district-council/wolverhampton","701613","Arthur Brett (Catering) Limited","ID1085403","67.09","Provisions (Resale)","130243751","15/02/2019","Visitor Economy","Art Gallery Tea Room","R4102"
"Wolverhampton City Council","http://opendatacommunities.org/id/metropolitan-district-council/wolverhampton","701613","Arthur Brett (Catering) Limited","ID1079785","28.32","Provisions (Resale)","130241341","01/02/2019","Older People Provider Services","Blakenhall Resource Centre","R4102"
"Wolverhampton City Council","http://opendatacommunities.org/id/metropolitan-district-council/wolverhampton","701613","Arthur Brett (Catering) Limited","ID1081477","78.00","Provisions (Resale)","130241973","01/02/2019","Visitor Economy","Bantock - Tea Rooms","R4102"
"Wolverhampton City Council","http://opendatacommunities.org/id/metropolitan-district-council/wolverhampton","701626","Asan Management Services Limited","112446","75.00","Room Hire","130242706","06/02/2019","Public Service Reform","Workforce Development","R2201"
"Wolverhampton City Council","http://opendatacommunities.org/id/metropolitan-district-council/wolverhampton","701626","Asan Management Services Limited","112446","70.00","Catering","130242706","06/02/2019","Public Service Reform","Workforce Development","R4100"
"Wolverhampton City Council","http://opendatacommunities.org/id/metropolitan-district-council/wolverhampton","701636","Asdan Limited","280657","2,758.35","Training Expenses","130240371","06/02/2019","Headstart","Headstart - Young People Engagement","R1650"
"Wolverhampton City Council","http://opendatacommunities.org/id/metropolitan-district-council/wolverhampton","701636","Asdan Limited","280657","7.00","Comms - Postage","130240371","06/02/2019","Headstart","Headstart - Young People Engagement","R4503"
"Wolverhampton City Council","http://opendatacommunities.org/id/metropolitan-district-council/wolverhampton","701639","Ash Rubber Stamp Co.Limited.","401142288","12.90","Stationery","130243977","13/02/2019","Legal Services","Legal Services","R4308"
"Wolverhampton City Council","http://opendatacommunities.org/id/metropolitan-district-council/wolverhampton","701639","Ash Rubber Stamp Co.Limited.","401142288","35.40","Stationery","130243977","13/02/2019","Legal Services","Legal Services","R4308"
"Wolverhampton City Council","http://opendatacommunities.org/id/metropolitan-district-council/wolverhampton","701639","Ash Rubber Stamp Co.Limited.","401142288","4.58","Stationery","130243977","13/02/2019","Legal Services","Legal Services","R4308"
"Wolverhampton City Council","http://opendatacommunities.org/id/metropolitan-district-council/wolverhampton","701639","Ash Rubber Stamp Co.Limited.","401142288","42.60","Stationery","130243977","13/02/2019","Legal Services","Legal Services","R4308"
"Wolverhampton City Council","http://opendatacommunities.org/id/metropolitan-district-council/wolverhampton","701643","Ashdown Supplies","15853","348.00","Materials","130243136","13/02/2019","Bereavement Services","Cemeteries","R4007"
"Wolverhampton City Council","http://opendatacommunities.org/id/metropolitan-district-council/wolverhampton","701650","Ashtead Plant Hire Company Limited","17986691","1,139.24","Equipment - Hire","130236974","06/02/2019","Visitor Economy","ALV - Darts & Comedy","R4001"
"Wolverhampton City Council","http://opendatacommunities.org/id/metropolitan-district-council/wolverhampton","701650","Ashtead Plant Hire Company Limited","17986692","1,140.00","Equipment - Hire","130236975","06/02/2019","Visitor Economy","ALV - Darts & Comedy","R4001"
"Wolverhampton City Council","http://opendatacommunities.org/id/metropolitan-district-council/wolverhampton","701650","Ashtead Plant Hire Company Limited","18009389","2,413.89","Equipment - Hire","130237637","06/02/2019","Visitor Economy","ALV - Darts & Comedy","R4001"
"Wolverhampton City Council","http://opendatacommunities.org/id/metropolitan-district-council/wolverhampton","701650","Ashtead Plant Hire Company Limited","18041877","330.00","Equipment - Hire","130239086","06/02/2019","Visitor Economy","ALV - Darts & Comedy","R4001"
"Wolverhampton City Council","http://opendatacommunities.org/id/metropolitan-district-council/wolverhampton","701656","Askews & Holts Library Services Limited","5936443","20.28","Books","130240625","08/02/2019","Local Economy","Global Budgets","R4309"
"Wolverhampton City Council","http://opendatacommunities.org/id/metropolitan-district-council/wolverhampton","701656","Askews & Holts Library Services Limited","5946570","7.97","Books","130241666","20/02/2019","Local Economy","Global Budgets","R4309"
"Wolverhampton City Council","http://opendatacommunities.org/id/metropolitan-district-council/wolverhampton","701656","Askews & Holts Library Services Limited","5946577","7.97","Books","130241671","20/02/2019","Local Economy","Global Budgets","R4309"
"Wolverhampton City Council","http://opendatacommunities.org/id/metropolitan-district-council/wolverhampton","701656","Askews & Holts Library Services Limited","5939790","8.13","Books","130241656","20/02/2019","Local Economy","Global Budgets","R4309"
"Wolverhampton City Council","http://opendatacommunities.org/id/metropolitan-district-council/wolverhampton","701656","Askews & Holts Library Services Limited","5939771","66.66","Books","130241641","15/02/2019","Local Economy","Global Budgets","R4309"
"Wolverhampton City Council","http://opendatacommunities.org/id/metropolitan-district-council/wolverhampton","701656","Askews & Holts Library Services Limited","5939774","79.71","Books","130241644","15/02/2019","Local Economy","Global Budgets","R4309"
"Wolverhampton City Council","http://opendatacommunities.org/id/metropolitan-district-council/wolverhampton","701656","Askews & Holts Library Services Limited","5939792","76.45","Books","130241658","15/02/2019","Local Economy","Global Budgets","R4309"
"Wolverhampton City Council","http://opendatacommunities.org/id/metropolitan-district-council/wolverhampton","701656","Askews & Holts Library Services Limited","5939786","100.29","Books","130241652","15/02/2019","Local Economy","Global Budgets","R4309"
"Wolverhampton City Council","http://opendatacommunities.org/id/metropolitan-district-council/wolverhampton","701656","Askews & Holts Library Services Limited","5946578","87.74","Books","130241672","15/02/2019","Local Economy","Global Budgets","R4309"
"Wolverhampton City Council","http://opendatacommunities.org/id/metropolitan-district-council/wolverhampton","701656","Askews & Holts Library Services Limited","5939782","67.67","Books","130241839","15/02/2019","Local Economy","Global Budgets","R4309"
"Wolverhampton City Council","http://opendatacommunities.org/id/metropolitan-district-council/wolverhampton","701656","Askews & Holts Library Services Limited","5939784","85.36","Books","130241841","15/02/2019","Local Economy","Global Budgets","R4309"
"Wolverhampton City Council","http://opendatacommunities.org/id/metropolitan-district-council/wolverhampton","701656","Askews & Holts Library Services Limited","5939773","12.04","Books","130241643","15/02/2019","Local Economy","Global Budgets","R4309"
"Wolverhampton City Council","http://opendatacommunities.org/id/metropolitan-district-council/wolverhampton","701656","Askews & Holts Library Services Limited","5946565","5.07","Books","130241661","15/02/2019","Local Economy","Global Budgets","R4309"
"Wolverhampton City Council","http://opendatacommunities.org/id/metropolitan-district-council/wolverhampton","701656","Askews & Holts Library Services Limited","5939789","317.04","Books","130241655","15/02/2019","Local Economy","Global Budgets","R4309"
"Wolverhampton City Council","http://opendatacommunities.org/id/metropolitan-district-council/wolverhampton","701656","Askews & Holts Library Services Limited","5939787","12.04","Books","130241653","15/02/2019","Local Economy","Global Budgets","R4309"
"Wolverhampton City Council","http://opendatacommunities.org/id/metropolitan-district-council/wolverhampton","701656","Askews & Holts Library Services Limited","5939779","12.04","Books","130241649","15/02/2019","Local Economy","Global Budgets","R4309"
"Wolverhampton City Council","http://opendatacommunities.org/id/metropolitan-district-council/wolverhampton","701656","Askews & Holts Library Services Limited","5946575","13.05","Books","130241669","15/02/2019","Local Economy","Global Budgets","R4309"
"Wolverhampton City Council","http://opendatacommunities.org/id/metropolitan-district-council/wolverhampton","701656","Askews & Holts Library Services Limited","5946566","42.75","Books","130241662","15/02/2019","Local Economy","Global Budgets","R4309"
"Wolverhampton City Council","http://opendatacommunities.org/id/metropolitan-district-council/wolverhampton","701656","Askews & Holts Library Services Limited","5939781","12.04","Books","130241838","15/02/2019","Local Economy","Global Budgets","R4309"
"Wolverhampton City Council","http://opendatacommunities.org/id/metropolitan-district-council/wolverhampton","701656","Askews & Holts Library Services Limited","5946571","43.91","Books","130241842","15/02/2019","Local Economy","Global Budgets","R4309"
"Wolverhampton City Council","http://opendatacommunities.org/id/metropolitan-district-council/wolverhampton","701656","Askews & Holts Library Services Limited","5943792","7.24","Books","130241342","13/02/2019","Local Economy","Global Budgets","R4309"
"Wolverhampton City Council","http://opendatacommunities.org/id/metropolitan-district-council/wolverhampton","701656","Askews & Holts Library Services Limited","5939772","27.83","Books","130241642","15/02/2019","Local Economy","Global Budgets","R4309"
"Wolverhampton City Council","http://opendatacommunities.org/id/metropolitan-district-council/wolverhampton","701656","Askews & Holts Library Services Limited","5939778","61.60","Books","130241648","15/02/2019","Local Economy","Global Budgets","R4309"
"Wolverhampton City Council","http://opendatacommunities.org/id/metropolitan-district-council/wolverhampton","701656","Askews & Holts Library Services Limited","5946564","23.76","Books","130241660","15/02/2019","Local Economy","Global Budgets","R4309"
"Wolverhampton City Council","http://opendatacommunities.org/id/metropolitan-district-council/wolverhampton","701656","Askews & Holts Library Services Limited","5939791","48.92","Books","130241657","15/02/2019","Local Economy","Global Budgets","R4309"
"Wolverhampton City Council","http://opendatacommunities.org/id/metropolitan-district-council/wolverhampton","701656","Askews & Holts Library Services Limited","5939775","23.92","Books","130241645","15/02/2019","Local Economy","Global Budgets","R4309"
"Wolverhampton City Council","http://opendatacommunities.org/id/metropolitan-district-council/wolverhampton","701656","Askews & Holts Library Services Limited","5939776","21.44","Books","130241646","15/02/2019","Local Economy","Global Budgets","R4309"
"Wolverhampton City Council","http://opendatacommunities.org/id/metropolitan-district-council/wolverhampton","701656","Askews & Holts Library Services Limited","5946576","104.90","Books","130241670","20/02/2019","Local Economy","Global Budgets","R4309"
"Wolverhampton City Council","http://opendatacommunities.org/id/metropolitan-district-council/wolverhampton","701656","Askews & Holts Library Services Limited","5946572","32.31","Books","130241843","15/02/2019","Local Economy","Global Budgets","R4309"
"Wolverhampton City Council","http://opendatacommunities.org/id/metropolitan-district-council/wolverhampton","701656","Askews & Holts Library Services Limited","5939769","20.86","Books","130241639","15/02/2019","Local Economy","Global Budgets","R4309"
"Wolverhampton City Council","http://opendatacommunities.org/id/metropolitan-district-council/wolverhampton","701656","Askews & Holts Library Services Limited","5953372","238.66","Books","130242302","22/02/2019","Local Economy","Global Budgets","R4309"
"Wolverhampton City Council","http://opendatacommunities.org/id/metropolitan-district-council/wolverhampton","701656","Askews & Holts Library Services Limited","5939788","17.84","Books","130241654","15/02/2019","Local Economy","Global Budgets","R4309"
"Wolverhampton City Council","http://opendatacommunities.org/id/metropolitan-district-council/wolverhampton","701656","Askews & Holts Library Services Limited","5953365","44.34","Books","130242434","22/02/2019","Local Economy","Global Budgets","R4309"
"Wolverhampton City Council","http://opendatacommunities.org/id/metropolitan-district-council/wolverhampton","701656","Askews & Holts Library Services Limited","5953357","42.18","Books","130242428","22/02/2019","Local Economy","Global Budgets","R4309"
"Wolverhampton City Council","http://opendatacommunities.org/id/metropolitan-district-council/wolverhampton","701656","Askews & Holts Library Services Limited","5953360","13.04","Books","130242430","22/02/2019","Local Economy","Global Budgets","R4309"
"Wolverhampton City Council","http://opendatacommunities.org/id/metropolitan-district-council/wolverhampton","701656","Askews & Holts Library Services Limited","5953366","19.27","Books","130242435","22/02/2019","Local Economy","Global Budgets","R4309"
"Wolverhampton City Council","http://opendatacommunities.org/id/metropolitan-district-council/wolverhampton","701656","Askews & Holts Library Services Limited","5953371","5.07","Books","130242438","22/02/2019","Local Economy","Global Budgets","R4309"
"Wolverhampton City Council","http://opendatacommunities.org/id/metropolitan-district-council/wolverhampton","701656","Askews & Holts Library Services Limited","5953363","5.65","Books","130242432","22/02/2019","Local Economy","Global Budgets","R4309"
"Wolverhampton City Council","http://opendatacommunities.org/id/metropolitan-district-council/wolverhampton","701656","Askews & Holts Library Services Limited","5953370","10.72","Books","130242437","22/02/2019","Local Economy","Global Budgets","R4309"
"Wolverhampton City Council","http://opendatacommunities.org/id/metropolitan-district-council/wolverhampton","701656","Askews & Holts Library Services Limited","5946574","20.86","Books","130241668","15/02/2019","Local Economy","Global Budgets","R4309"
"Wolverhampton City Council","http://opendatacommunities.org/id/metropolitan-district-council/wolverhampton","701656","Askews & Holts Library Services Limited","5946568","20.86","Books","130241664","15/02/2019","Local Economy","Global Budgets","R4309"
"Wolverhampton City Council","http://opendatacommunities.org/id/metropolitan-district-council/wolverhampton","701656","Askews & Holts Library Services Limited","5953368","40.43","Books","130242548","22/02/2019","Local Economy","Global Budgets","R4309"
"Wolverhampton City Council","http://opendatacommunities.org/id/metropolitan-district-council/wolverhampton","701656","Askews & Holts Library Services Limited","5953362","10.72","Books","130242546","22/02/2019","Local Economy","Global Budgets","R4309"
"Wolverhampton City Council","http://opendatacommunities.org/id/metropolitan-district-council/wolverhampton","701656","Askews & Holts Library Services Limited","5953367","15.94","Books","130242547","22/02/2019","Local Economy","Global Budgets","R4309"
"Wolverhampton City Council","http://opendatacommunities.org/id/metropolitan-district-council/wolverhampton","701656","Askews & Holts Library Services Limited","5953358","60.86","Books","130242429","22/02/2019","Local Economy","Global Budgets","R4309"
"Wolverhampton City Council","http://opendatacommunities.org/id/metropolitan-district-council/wolverhampton","701656","Askews & Holts Library Services Limited","5953364","74.64","Books","130242433","22/02/2019","Local Economy","Global Budgets","R4309"
"Wolverhampton City Council","http://opendatacommunities.org/id/metropolitan-district-council/wolverhampton","701656","Askews & Holts Library Services Limited","5953361","48.98","Books","130242431","22/02/2019","Local Economy","Global Budgets","R4309"
"Wolverhampton City Council","http://opendatacommunities.org/id/metropolitan-district-council/wolverhampton","701656","Askews & Holts Library Services Limited","5932535","38.97","Books","130240070","01/02/2019","Local Economy","Global Budgets","R4309"
"Wolverhampton City Council","http://opendatacommunities.org/id/metropolitan-district-council/wolverhampton","701656","Askews & Holts Library Services Limited","5932528","46.24","Books","130240063","01/02/2019","Local Economy","Global Budgets","R4309"
"Wolverhampton City Council","http://opendatacommunities.org/id/metropolitan-district-council/wolverhampton","701656","Askews & Holts Library Services Limited","5932536","35.21","Books","130240181","01/02/2019","Local Economy","Global Budgets","R4309"
"Wolverhampton City Council","http://opendatacommunities.org/id/metropolitan-district-council/wolverhampton","701656","Askews & Holts Library Services Limited","5932539","45.36","Books","130240072","01/02/2019","Local Economy","Global Budgets","R4309"
"Wolverhampton City Council","http://opendatacommunities.org/id/metropolitan-district-council/wolverhampton","701656","Askews & Holts Library Services Limited","5932531","45.36","Books","130240066","01/02/2019","Local Economy","Global Budgets","R4309"
"Wolverhampton City Council","http://opendatacommunities.org/id/metropolitan-district-council/wolverhampton","701656","Askews & Holts Library Services Limited","5932529","40.71","Books","130240064","01/02/2019","Local Economy","Global Budgets","R4309"
"Wolverhampton City Council","http://opendatacommunities.org/id/metropolitan-district-council/wolverhampton","701656","Askews & Holts Library Services Limited","5925009","87.74","Books","130240061","01/02/2019","Local Economy","Global Budgets","R4309"
"Wolverhampton City Council","http://opendatacommunities.org/id/metropolitan-district-council/wolverhampton","701656","Askews & Holts Library Services Limited","5925008","340.87","Books","130240060","01/02/2019","Local Economy","Global Budgets","R4309"
"Wolverhampton City Council","http://opendatacommunities.org/id/metropolitan-district-council/wolverhampton","701656","Askews & Holts Library Services Limited","5932538","66.39","Books","130240071","01/02/2019","Local Economy","Global Budgets","R4309"
"Wolverhampton City Council","http://opendatacommunities.org/id/metropolitan-district-council/wolverhampton","701656","Askews & Holts Library Services Limited","5932530","56.37","Books","130240065","01/02/2019","Local Economy","Global Budgets","R4309"
"Wolverhampton City Council","http://opendatacommunities.org/id/metropolitan-district-council/wolverhampton","701656","Askews & Holts Library Services Limited","5932533","61.60","Books","130240068","01/02/2019","Local Economy","Global Budgets","R4309"
"Wolverhampton City Council","http://opendatacommunities.org/id/metropolitan-district-council/wolverhampton","701656","Askews & Holts Library Services Limited","5932537","67.40","Books","130240182","01/02/2019","Local Economy","Global Budgets","R4309"
"Wolverhampton City Council","http://opendatacommunities.org/id/metropolitan-district-council/wolverhampton","701656","Askews & Holts Library Services Limited","5932534","71.32","Books","130240069","01/02/2019","Local Economy","Global Budgets","R4309"
"Wolverhampton City Council","http://opendatacommunities.org/id/metropolitan-district-council/wolverhampton","701656","Askews & Holts Library Services Limited","5932527","81.02","Books","130240062","01/02/2019","Local Economy","Global Budgets","R4309"
"Wolverhampton City Council","http://opendatacommunities.org/id/metropolitan-district-council/wolverhampton","701656","Askews & Holts Library Services Limited","5924991","5.07","Books","130241114","01/02/2019","Local Economy","Global Budgets","R4309"
"Wolverhampton City Council","http://opendatacommunities.org/id/metropolitan-district-council/wolverhampton","701656","Askews & Holts Library Services Limited","5924983","5.07","Books","130240044","01/02/2019","Local Economy","Global Budgets","R4309"
"Wolverhampton City Council","http://opendatacommunities.org/id/metropolitan-district-council/wolverhampton","701656","Askews & Holts Library Services Limited","5924989","5.07","Books","130240049","01/02/2019","Local Economy","Global Budgets","R4309"
"Wolverhampton City Council","http://opendatacommunities.org/id/metropolitan-district-council/wolverhampton","701656","Askews & Holts Library Services Limited","5925007","450.26","Books","130240059","01/02/2019","Local Economy","Global Budgets","R4309"
"Wolverhampton City Council","http://opendatacommunities.org/id/metropolitan-district-council/wolverhampton","701656","Askews & Holts Library Services Limited","5924990","7.39","Books","130239961","01/02/2019","Local Economy","Global Budgets","R4309"
"Wolverhampton City Council","http://opendatacommunities.org/id/metropolitan-district-council/wolverhampton","701656","Askews & Holts Library Services Limited","5924994","5.07","Books","130239963","01/02/2019","Local Economy","Global Budgets","R4309"
"Wolverhampton City Council","http://opendatacommunities.org/id/metropolitan-district-council/wolverhampton","701656","Askews & Holts Library Services Limited","5932540","509.90","Books","130240073","01/02/2019","Local Economy","Global Budgets","R4309"
"Wolverhampton City Council","http://opendatacommunities.org/id/metropolitan-district-council/wolverhampton","701656","Askews & Holts Library Services Limited","5932532","28.25","Books","130240067","01/02/2019","Local Economy","Global Budgets","R4309"
"Wolverhampton City Council","http://opendatacommunities.org/id/metropolitan-district-council/wolverhampton","701656","Askews & Holts Library Services Limited","5924985","7.39","Books","130240046","01/02/2019","Local Economy","Global Budgets","R4309"
"Wolverhampton City Council","http://opendatacommunities.org/id/metropolitan-district-council/wolverhampton","701656","Askews & Holts Library Services Limited","5924988","6.23","Books","130240048","01/02/2019","Local Economy","Global Budgets","R4309"
"Wolverhampton City Council","http://opendatacommunities.org/id/metropolitan-district-council/wolverhampton","701656","Askews & Holts Library Services Limited","5924984","13.04","Books","130240045","01/02/2019","Local Economy","Global Budgets","R4309"
"Wolverhampton City Council","http://opendatacommunities.org/id/metropolitan-district-council/wolverhampton","701656","Askews & Holts Library Services Limited","5924995","10.87","Books","130240050","01/02/2019","Local Economy","Global Budgets","R4309"
"Wolverhampton City Council","http://opendatacommunities.org/id/metropolitan-district-council/wolverhampton","701656","Askews & Holts Library Services Limited","5924996","10.87","Books","130240051","01/02/2019","Local Economy","Global Budgets","R4309"
"Wolverhampton City Council","http://opendatacommunities.org/id/metropolitan-district-council/wolverhampton","701656","Askews & Holts Library Services Limited","5924998","10.87","Books","130240052","01/02/2019","Local Economy","Global Budgets","R4309"
"Wolverhampton City Council","http://opendatacommunities.org/id/metropolitan-district-council/wolverhampton","701656","Askews & Holts Library Services Limited","5924999","10.87","Books","130240053","01/02/2019","Local Economy","Global Budgets","R4309"
"Wolverhampton City Council","http://opendatacommunities.org/id/metropolitan-district-council/wolverhampton","701656","Askews & Holts Library Services Limited","5924997","10.87","Books","130239964","01/02/2019","Local Economy","Global Budgets","R4309"
"Wolverhampton City Council","http://opendatacommunities.org/id/metropolitan-district-council/wolverhampton","701656","Askews & Holts Library Services Limited","5925003","10.87","Books","130241116","01/02/2019","Local Economy","Global Budgets","R4309"
"Wolverhampton City Council","http://opendatacommunities.org/id/metropolitan-district-council/wolverhampton","701656","Askews & Holts Library Services Limited","5925004","10.87","Books","130241117","01/02/2019","Local Economy","Global Budgets","R4309"
"Wolverhampton City Council","http://opendatacommunities.org/id/metropolitan-district-council/wolverhampton","701656","Askews & Holts Library Services Limited","5925000","10.87","Books","130240054","01/02/2019","Local Economy","Global Budgets","R4309"
"Wolverhampton City Council","http://opendatacommunities.org/id/metropolitan-district-council/wolverhampton","701656","Askews & Holts Library Services Limited","5925001","10.87","Books","130240055","01/02/2019","Local Economy","Global Budgets","R4309"
"Wolverhampton City Council","http://opendatacommunities.org/id/metropolitan-district-council/wolverhampton","701656","Askews & Holts Library Services Limited","5925006","10.87","Books","130240058","01/02/2019","Local Economy","Global Budgets","R4309"
"Wolverhampton City Council","http://opendatacommunities.org/id/metropolitan-district-council/wolverhampton","701656","Askews & Holts Library Services Limited","5925002","10.87","Books","130240056","01/02/2019","Local Economy","Global Budgets","R4309"
"Wolverhampton City Council","http://opendatacommunities.org/id/metropolitan-district-council/wolverhampton","701656","Askews & Holts Library Services Limited","5925005","10.87","Books","130240057","01/02/2019","Local Economy","Global Budgets","R4309"
"Wolverhampton City Council","http://opendatacommunities.org/id/metropolitan-district-council/wolverhampton","701656","Askews & Holts Library Services Limited","5924993","10.72","Books","130239962","01/02/2019","Local Economy","Global Budgets","R4309"
"Wolverhampton City Council","http://opendatacommunities.org/id/metropolitan-district-council/wolverhampton","701656","Askews & Holts Library Services Limited","5924992","10.72","Books","130241115","01/02/2019","Local Economy","Global Budgets","R4309"
"Wolverhampton City Council","http://opendatacommunities.org/id/metropolitan-district-council/wolverhampton","701656","Askews & Holts Library Services Limited","5924986","10.72","Books","130240047","01/02/2019","Local Economy","Global Budgets","R4309"
"Wolverhampton City Council","http://opendatacommunities.org/id/metropolitan-district-council/wolverhampton","701656","Askews & Holts Library Services Limited","5924987","10.14","Books","130239960","01/02/2019","Local Economy","Global Budgets","R4309"
"Wolverhampton City Council","http://opendatacommunities.org/id/metropolitan-district-council/wolverhampton","701656","Askews & Holts Library Services Limited","5939770","20.01","Books","130241640","15/02/2019","Local Economy","Global Budgets","R4309"
"Wolverhampton City Council","http://opendatacommunities.org/id/metropolitan-district-council/wolverhampton","701656","Askews & Holts Library Services Limited","5888667","24.08","Books","130235503","06/02/2019","Local Economy","Global Budgets","R4309"
"Wolverhampton City Council","http://opendatacommunities.org/id/metropolitan-district-council/wolverhampton","701656","Askews & Holts Library Services Limited","5939777","17.11","Books","130241647","15/02/2019","Local Economy","Global Budgets","R4309"
"Wolverhampton City Council","http://opendatacommunities.org/id/metropolitan-district-council/wolverhampton","701656","Askews & Holts Library Services Limited","5946563","14.20","Books","130241659","15/02/2019","Local Economy","Global Budgets","R4309"
"Wolverhampton City Council","http://opendatacommunities.org/id/metropolitan-district-council/wolverhampton","701656","Askews & Holts Library Services Limited","5939785","20.01","Books","130241651","15/02/2019","Local Economy","Global Budgets","R4309"
"Wolverhampton City Council","http://opendatacommunities.org/id/metropolitan-district-council/wolverhampton","701656","Askews & Holts Library Services Limited","5946573","13.62","Books","130241667","15/02/2019","Local Economy","Global Budgets","R4309"
"Wolverhampton City Council","http://opendatacommunities.org/id/metropolitan-district-council/wolverhampton","701656","Askews & Holts Library Services Limited","5946569","17.10","Books","130241665","15/02/2019","Local Economy","Global Budgets","R4309"
"Wolverhampton City Council","http://opendatacommunities.org/id/metropolitan-district-council/wolverhampton","701656","Askews & Holts Library Services Limited","5939783","20.01","Books","130241840","15/02/2019","Local Economy","Global Budgets","R4309"
"Wolverhampton City Council","http://opendatacommunities.org/id/metropolitan-district-council/wolverhampton","701656","Askews & Holts Library Services Limited","5882441","7.97","Books","130234695","06/02/2019","Local Economy","Global Budgets","R4309"
"Wolverhampton City Council","http://opendatacommunities.org/id/metropolitan-district-council/wolverhampton","701672","Assn Of Electoral Administrators","24856","41.00","Training Expenses","130243593","27/02/2019","Public Service Reform","Centralised Training","R1650"
"Wolverhampton City Council","http://opendatacommunities.org/id/metropolitan-district-council/wolverhampton","701680","Associated  Radio Taxi�s","ART-18-0039","807.50","Client Transport","130244762","20/02/2019","Special Educational Needs","Secondary- Transport","R3042"
"Wolverhampton City Council","http://opendatacommunities.org/id/metropolitan-district-council/wolverhampton","701680","Associated  Radio Taxi�s","ART-18-0036","1,157.88","Client Transport","130244583","20/02/2019","Special Educational Needs","Special - Transport","R3042"
"Wolverhampton City Council","http://opendatacommunities.org/id/metropolitan-district-council/wolverhampton","701680","Associated  Radio Taxi�s","ART-18-0035","1,205.46","Client Transport","130244582","20/02/2019","Special Educational Needs","Primary - Transport","R3042"
"Wolverhampton City Council","http://opendatacommunities.org/id/metropolitan-district-council/wolverhampton","701680","Associated  Radio Taxi�s","ART-18-0034","1,177.24","Client Transport","130244581","20/02/2019","Special Educational Needs","Secondary- Transport","R3042"
"Wolverhampton City Council","http://opendatacommunities.org/id/metropolitan-district-council/wolverhampton","701680","Associated  Radio Taxi�s","ART-18-0037","1,135.90","Client Transport","130244584","20/02/2019","Special Educational Needs","Special - Transport","R3042"
"Wolverhampton City Council","http://opendatacommunities.org/id/metropolitan-district-council/wolverhampton","701680","Associated  Radio Taxi�s","ART-18-0038","939.42","Client Transport","130244898","22/02/2019","Special Educational Needs","Secondary- Transport","R3042"
"Wolverhampton City Council","http://opendatacommunities.org/id/metropolitan-district-council/wolverhampton","701680","Associated  Radio Taxi�s","ART-18-0040","1,227.56","Client Transport","130243754","13/02/2019","Special Educational Needs","Special - Transport","R3042"
"Wolverhampton City Council","http://opendatacommunities.org/id/metropolitan-district-council/wolverhampton","701707","Aurora Graphics & Displays Limited","63336","327.30","Printing","130244281","20/02/2019","ICTS","Document Centre - General","R4300"
"Wolverhampton City Council","http://opendatacommunities.org/id/metropolitan-district-council/wolverhampton","701722","Av Parts Master Limited","INV-145823 - BACS Rejection","75.00","Computing - Purchase of Hardware","130243384","08/02/2019","Schools","Whitgreave Infant School","R4530"
"Wolverhampton City Council","http://opendatacommunities.org/id/metropolitan-district-council/wolverhampton","701739","Axiom Building Solutions","05738","175.00","R&M - Departmental planned (external)","130242549","01/02/2019","Corporate Asset Management","Statutory Surveys","R2001"
"Wolverhampton City Council","http://opendatacommunities.org/id/metropolitan-district-council/wolverhampton","701739","Axiom Building Solutions","06715","5,000.00","R&M - Departmental planned (external)","130242117","01/02/2019","Corporate Asset Management","Statutory Surveys","R2001"
"Wolverhampton City Council","http://opendatacommunities.org/id/metropolitan-district-council/wolverhampton","701739","Axiom Building Solutions","06717","225.00","R&M - Departmental planned (external)","130243149","08/02/2019","Corporate Asset Management","Statutory Surveys","R2001"
"Wolverhampton City Council","http://opendatacommunities.org/id/metropolitan-district-council/wolverhampton","701784","Bains Supersave Limited","APNEWS058","51.00","Books","130244900","22/02/2019","Local Economy","Global Budgets","R4309"
"Wolverhampton City Council","http://opendatacommunities.org/id/metropolitan-district-council/wolverhampton","701787","Baker Hall Limited","WV/01/19","1,172.50","Services - Consultants","130243150","27/02/2019","Planning","Building Consultancy","R4404"
"Wolverhampton City Council","http://opendatacommunities.org/id/metropolitan-district-council/wolverhampton","701816","BASBOF","AZA1633 Levy Payment 01/01/18 - 31/12/18","8.51","Subscriptions","130242099","06/02/2019","Corporate Communications","Communications & Marketing - General","R4701"
"Wolverhampton City Council","http://opendatacommunities.org/id/metropolitan-district-council/wolverhampton","701817","Base 25","3745","300.00","Grant Payments","130242707","27/02/2019","Strengthening Families","EI Area 5 - Whitmore Reans","R4700"
"Wolverhampton City Council","http://opendatacommunities.org/id/metropolitan-district-council/wolverhampton","701832","Bbp.Security Services & Training Limited","401WCC200219","494.00","Services - Security","130245234","27/02/2019","Maintenance Programme","Asset Management Team","R4405"
"Wolverhampton City Council","http://opendatacommunities.org/id/metropolitan-district-council/wolverhampton","701832","Bbp.Security Services & Training Limited","395WCC130219","198.00","Services - Security","130244421","27/02/2019","Children & Young People In Care","Head of Service - LAC","R4405"
"Wolverhampton City Council","http://opendatacommunities.org/id/metropolitan-district-council/wolverhampton","701832","Bbp.Security Services & Training Limited","404WCC210219","11,669.00","Services - Security","130245237","27/02/2019","Licensing","Private Hire Vehicles","R4405"
"Wolverhampton City Council","http://opendatacommunities.org/id/metropolitan-district-council/wolverhampton","701832","Bbp.Security Services & Training Limited","400WCC200219","1,000.00","Services - Security","130245233","27/02/2019","Bereavement Services","Cemeteries","R4405"
"Wolverhampton City Council","http://opendatacommunities.org/id/metropolitan-district-council/wolverhampton","701832","Bbp.Security Services & Training Limited","394WCC130219","126.00","Services - Security","130244420","27/02/2019","Facilities Management","Parkfields Office Accomodation","R4405"
"Wolverhampton City Council","http://opendatacommunities.org/id/metropolitan-district-council/wolverhampton","701832","Bbp.Security Services & Training Limited","393WCC130219","5,937.75","Services - Security","130244419","27/02/2019","Facilities Management","Parkfields Office Accomodation","R4405"
"Wolverhampton City Council","http://opendatacommunities.org/id/metropolitan-district-council/wolverhampton","701832","Bbp.Security Services & Training Limited","350WCC281118","289.00","Services - Security","130244416","20/02/2019","Maintenance Programme","Asset Management Team","R4405"
"Wolverhampton City Council","http://opendatacommunities.org/id/metropolitan-district-council/wolverhampton","701832","Bbp.Security Services & Training Limited","390WCC070219","3,900.00","Services - Security","130244000","20/02/2019","Facilities Management","Management of Vacant Properties","R4405"
"Wolverhampton City Council","http://opendatacommunities.org/id/metropolitan-district-council/wolverhampton","701832","Bbp.Security Services & Training Limited","399WCC200219","368.00","Agency Staff","130245232","27/02/2019","Leisure Services","Bert Williams Leisure Centre","R1100"
"Wolverhampton City Council","http://opendatacommunities.org/id/metropolitan-district-council/wolverhampton","701832","Bbp.Security Services & Training Limited","385WCC290119","264.00","Services - Security","130242550","15/02/2019","Learning Disability Provider","Support Plus","R4405"
"Wolverhampton City Council","http://opendatacommunities.org/id/metropolitan-district-council/wolverhampton","701832","Bbp.Security Services & Training Limited","402WCC200219","242.00","Services - Security","130245235","27/02/2019","Maintenance Programme","Asset Management Team","R4405"
"Wolverhampton City Council","http://opendatacommunities.org/id/metropolitan-district-council/wolverhampton","701832","Bbp.Security Services & Training Limited","383WCC290119","6,737.50","Services - Security","130242708","08/02/2019","Licensing","Private Hire Vehicles","R4405"
"Wolverhampton City Council","http://opendatacommunities.org/id/metropolitan-district-council/wolverhampton","701832","Bbp.Security Services & Training Limited","380WCC100119","6,420.94","Services - Security","130240887","08/02/2019","Licensing","Private Hire Vehicles","R4405"
"Wolverhampton City Council","http://opendatacommunities.org/id/metropolitan-district-council/wolverhampton","701832","Bbp.Security Services & Training Limited","384WCC290119","9,320.50","Services - Security","130242709","08/02/2019","Licensing","Private Hire Vehicles","R4405"
"Wolverhampton City Council","http://opendatacommunities.org/id/metropolitan-district-council/wolverhampton","701832","Bbp.Security Services & Training Limited","386WCC290119","264.00","Services - Security","130242551","06/02/2019","Learning Disability Provider","Support Plus","R4405"
"Wolverhampton City Council","http://opendatacommunities.org/id/metropolitan-district-council/wolverhampton","701832","Bbp.Security Services & Training Limited","386WCC290119","18.00","Services - Security","130242551","06/02/2019","Learning Disability Provider","Support Plus","R4405"
"Wolverhampton City Council","http://opendatacommunities.org/id/metropolitan-district-council/wolverhampton","701832","Bbp.Security Services & Training Limited","389WCC050219","6,294.75","Services - Security","130243393","13/02/2019","Markets","Wolverhampton Indoor and Open Market","R4405"
"Wolverhampton City Council","http://opendatacommunities.org/id/metropolitan-district-council/wolverhampton","701832","Bbp.Security Services & Training Limited","389WCC050219","310.00","Services - Security","130243393","13/02/2019","Markets","Wolverhampton Indoor and Open Market","R4405"
"Wolverhampton City Council","http://opendatacommunities.org/id/metropolitan-district-council/wolverhampton","701832","Bbp.Security Services & Training Limited","388WCC050219","2,537.00","Services - Security","130243392","13/02/2019","Markets","Bilston Market and Licensed Operations","R4405"
"Wolverhampton City Council","http://opendatacommunities.org/id/metropolitan-district-council/wolverhampton","701832","Bbp.Security Services & Training Limited","388WCC050219","62.50","Services - Security","130243392","13/02/2019","Markets","Bilston Market and Licensed Operations","R4405"
"Wolverhampton City Council","http://opendatacommunities.org/id/metropolitan-district-council/wolverhampton","701832","Bbp.Security Services & Training Limited","325WCC111018","1,900.00","Services - Professional Fees","130244415","20/02/2019","City Development","Strategic Disposals","R4400"
"Wolverhampton City Council","http://opendatacommunities.org/id/metropolitan-district-council/wolverhampton","701835","BCC Mac T/A St Michaels Catholic","Early Years Autumn term Final Payment and Spring Term Interim Payment","37,247.97","Grant Payments","190561946","15/02/2019","Central Education","Academy Early years","R4700"
"Wolverhampton City Council","http://opendatacommunities.org/id/metropolitan-district-council/wolverhampton","701837","SS Peter & Paul Cath. Primary & Nursery","Early Years Autumn term Final Payment and Spring Term Interim Payment","23,943.90","Grant Payments","190561946","15/02/2019","Central Education","Academy Early years","R4700"
"Wolverhampton City Council","http://opendatacommunities.org/id/metropolitan-district-council/wolverhampton","701867","Believe To Achieve Limited","13555","120.00","Services - Professional Fees","130240184","08/02/2019","Strengthening Families","EI Area 1- Eastfield","R4400"
"Wolverhampton City Council","http://opendatacommunities.org/id/metropolitan-district-council/wolverhampton","701867","Believe To Achieve Limited","13554","90.00","Grant Payments","130240183","06/02/2019","Strengthening Families","EI Area 6- Dovecotes","R4700"
"Wolverhampton City Council","http://opendatacommunities.org/id/metropolitan-district-council/wolverhampton","701867","Believe To Achieve Limited","13572","32.00","Services - Supplies and Services to service users","130243594","13/02/2019","Strengthening Families","EI Area 6- Dovecotes","R4408"
"Wolverhampton City Council","http://opendatacommunities.org/id/metropolitan-district-council/wolverhampton","701867","Believe To Achieve Limited","13573","224.00","Services - Professional Fees","130244001","15/02/2019","Strengthening Families","EI Area 1- Eastfield","R4400"
"Wolverhampton City Council","http://opendatacommunities.org/id/metropolitan-district-council/wolverhampton","701885","Berrymans Lace Mawer","2436693","2,021.20","Insurance - General","130236795","08/02/2019","Audit Services","Wolverhampton Homes Claims","R4962"
"Wolverhampton City Council","http://opendatacommunities.org/id/metropolitan-district-council/wolverhampton","701885","Berrymans Lace Mawer","TP150054/SJ","1,004.25","Insurance - General","130234525","06/02/2019","Audit Services","Legal Liability","R4962"
"Wolverhampton City Council","http://opendatacommunities.org/id/metropolitan-district-council/wolverhampton","701885","Berrymans Lace Mawer","2430106","525.00","Insurance - General","130239681","06/02/2019","Audit Services","Legal Liability","R4962"
"Wolverhampton City Council","http://opendatacommunities.org/id/metropolitan-district-council/wolverhampton","701885","Berrymans Lace Mawer","2456943","2,584.00","Insurance - General","130240185","06/02/2019","Audit Services","Legal Liability","R4962"
"Wolverhampton City Council","http://opendatacommunities.org/id/metropolitan-district-council/wolverhampton","701920","Biffa Waste Services Limited","887L49809","9,102.10","TPP - Waste Disposal","130242118","13/02/2019","Waste and Recycling Service","Waste Collection and Recycling Service - General","R5003"
"Wolverhampton City Council","http://opendatacommunities.org/id/metropolitan-district-council/wolverhampton","701920","Biffa Waste Services Limited","887L49757","9,644.15","TPP - Waste Disposal","130241225","06/02/2019","Waste and Recycling Service","Waste Collection and Recycling Service - General","R5003"
"Wolverhampton City Council","http://opendatacommunities.org/id/metropolitan-district-council/wolverhampton","701920","Biffa Waste Services Limited","887L49878","7,313.34","TPP - Waste Disposal","130243394","20/02/2019","Waste and Recycling Service","Waste Collection and Recycling Service - General","R5003"
"Wolverhampton City Council","http://opendatacommunities.org/id/metropolitan-district-council/wolverhampton","701920","Biffa Waste Services Limited","887L49559","6,743.44","TPP - Waste Disposal","130239517","06/02/2019","Waste and Recycling Service","Waste Collection and Recycling Service - General","R5003"
"Wolverhampton City Council","http://opendatacommunities.org/id/metropolitan-district-council/wolverhampton","701920","Biffa Waste Services Limited","887L49559","164.45","TPP - Waste Disposal","130239517","06/02/2019","Waste and Recycling Service","Waste Collection and Recycling Service - General","R5003"
"Wolverhampton City Council","http://opendatacommunities.org/id/metropolitan-district-council/wolverhampton","701930","Bilston Resource Centre","UC007","2,516.85","Training Expenses","130240188","06/02/2019","Local Economy","Universal Credit","R1650"
"Wolverhampton City Council","http://opendatacommunities.org/id/metropolitan-district-council/wolverhampton","701944","Birmingham CC - General Fund","9002642075","7,489.72","Comms - Postage","130241975","20/02/2019","ICTS","Document Centre - General","R4503"
"Wolverhampton City Council","http://opendatacommunities.org/id/metropolitan-district-council/wolverhampton","701944","Birmingham CC - General Fund","9002642074","1,255.40","Comms - Postage","130241974","20/02/2019","Public Service Reform","Electoral Registration","R4503"
"Wolverhampton City Council","http://opendatacommunities.org/id/metropolitan-district-council/wolverhampton","701944","Birmingham CC - General Fund","9002417840","45.00","Training Expenses","130244906","27/02/2019","Inclusion Support","Pupil Premium","R1650"
"Wolverhampton City Council","http://opendatacommunities.org/id/metropolitan-district-council/wolverhampton","701944","Birmingham CC - General Fund","9002634515","20,540.47","Comms - Postage","130240889","13/02/2019","Public Service Reform","Electoral Registration","R4503"
"Wolverhampton City Council","http://opendatacommunities.org/id/metropolitan-district-council/wolverhampton","701944","Birmingham CC - General Fund","9002417839","110.00","Training Expenses","130244905","27/02/2019","Inclusion Support","Pupil Premium","R1650"
"Wolverhampton City Council","http://opendatacommunities.org/id/metropolitan-district-council/wolverhampton","701944","Birmingham CC - General Fund","9002477463","810.00","Training Expenses","130244907","27/02/2019","Inclusion Support","Pupil Premium","R1650"
"Wolverhampton City Council","http://opendatacommunities.org/id/metropolitan-district-council/wolverhampton","701944","Birmingham CC - General Fund","9002479576","25.00","Training Expenses","130244908","27/02/2019","Inclusion Support","Pupil Premium","R1650"
"Wolverhampton City Council","http://opendatacommunities.org/id/metropolitan-district-council/wolverhampton","701944","Birmingham CC - General Fund","9002634516","6,212.39","Comms - Postage","130240890","13/02/2019","ICTS","Document Centre - General","R4503"
"Wolverhampton City Council","http://opendatacommunities.org/id/metropolitan-district-council/wolverhampton","701945","Birmingham City University","11761243-006","900.00","Training Expenses","130242884","06/02/2019","Public Service Reform","Centralised Training","R1650"
"Wolverhampton City Council","http://opendatacommunities.org/id/metropolitan-district-council/wolverhampton","701962","Black Country Chamber Of Commerce","48872","315.00","Subscriptions","130243395","13/02/2019","Enterprise","AIM for the Black Country shared costs","R4701"
"Wolverhampton City Council","http://opendatacommunities.org/id/metropolitan-district-council/wolverhampton","701963","Black Country Consortium Limited","1956","22,447.08","Grant Payments","130243595","13/02/2019","Enterprise","AIM for the Black Country shared costs","R4700"
"Wolverhampton City Council","http://opendatacommunities.org/id/metropolitan-district-council/wolverhampton","701963","Black Country Consortium Limited","1955","2,850.00","Services - Consultants","130243152","08/02/2019","Local Economy","Universal Credit","R4404"
"Wolverhampton City Council","http://opendatacommunities.org/id/metropolitan-district-council/wolverhampton","701970","Black Country Society","BCS/AHR/19/WOLVARCH","12.50","Subscriptions","130244589","20/02/2019","Visitor Economy","Archives","R4701"
"Wolverhampton City Council","http://opendatacommunities.org/id/metropolitan-district-council/wolverhampton","701996","Blue Group Interntl Limited T/A Bluecare","HSOC5726318","5.85","Agency Staff","130240892","08/02/2019","Strengthening Families","CP Area 8 - Children�s Village","R1100"
"Wolverhampton City Council","http://opendatacommunities.org/id/metropolitan-district-council/wolverhampton","701996","Blue Group Interntl Limited T/A Bluecare","HSOC5726317","1,369.00","Agency Staff","130240891","08/02/2019","Strengthening Families","CP Area 8 - Children�s Village","R1100"
"Wolverhampton City Council","http://opendatacommunities.org/id/metropolitan-district-council/wolverhampton","701996","Blue Group Interntl Limited T/A Bluecare","HSOC5727721","1,369.00","Agency Staff","130242119","22/02/2019","Strengthening Families","CP Area 8 - Children�s Village","R1100"
"Wolverhampton City Council","http://opendatacommunities.org/id/metropolitan-district-council/wolverhampton","701996","Blue Group Interntl Limited T/A Bluecare","HSOC5725596","814.00","Agency Staff","130239966","01/02/2019","Strengthening Families","CP Area 8 - Children�s Village","R1100"
"Wolverhampton City Council","http://opendatacommunities.org/id/metropolitan-district-council/wolverhampton","701996","Blue Group Interntl Limited T/A Bluecare","HSOC5727722","4.95","Agency Staff","130242120","22/02/2019","Strengthening Families","CP Area 8 - Children�s Village","R1100"
"Wolverhampton City Council","http://opendatacommunities.org/id/metropolitan-district-council/wolverhampton","701996","Blue Group Interntl Limited T/A Bluecare","HSOC5727000","1,369.00","Agency Staff","130241536","15/02/2019","Strengthening Families","CP Area 8 - Children�s Village","R1100"
"Wolverhampton City Council","http://opendatacommunities.org/id/metropolitan-district-council/wolverhampton","702015","Boc Limited","3051039289","95.25","Gas","130243596","27/02/2019","Visitor Economy","The Little Civic","R2101"
"Wolverhampton City Council","http://opendatacommunities.org/id/metropolitan-district-council/wolverhampton","702015","Boc Limited","3050115149","148.30","Gas","130241492","15/02/2019","Visitor Economy","The Little Civic","R2101"
"Wolverhampton City Council","http://opendatacommunities.org/id/metropolitan-district-council/wolverhampton","702015","Boc Limited","3049979352","440.02","Gas","130241490","15/02/2019","Visitor Economy","The Little Civic","R2101"
"Wolverhampton City Council","http://opendatacommunities.org/id/metropolitan-district-council/wolverhampton","702015","Boc Limited","3049979352","2.00","Gas","130241490","15/02/2019","Visitor Economy","The Little Civic","R2101"
"Wolverhampton City Council","http://opendatacommunities.org/id/metropolitan-district-council/wolverhampton","702020","Boningale Nurseries","603402","2,219.35","Materials","130245239","27/02/2019","Environmental Maintenance","Ground Maintenance East","R4007"
"Wolverhampton City Council","http://opendatacommunities.org/id/metropolitan-district-council/wolverhampton","702033","Boosey&Hawkes With Music Exchange","4190450","696.45","Books","130242539","27/02/2019","School Planning & Resources","Music Support Team","R4309"
"Wolverhampton City Council","http://opendatacommunities.org/id/metropolitan-district-council/wolverhampton","702033","Boosey&Hawkes With Music Exchange","4190450","5.50","Books","130242539","27/02/2019","School Planning & Resources","Music Support Team","R4309"
"Wolverhampton City Council","http://opendatacommunities.org/id/metropolitan-district-council/wolverhampton","702033","Boosey&Hawkes With Music Exchange","58685","-19.10","Books","130235275","27/02/2019","School Planning & Resources","Music Support Team","R4309"
"Wolverhampton City Council","http://opendatacommunities.org/id/metropolitan-district-council/wolverhampton","702040","Bottomline Technologies Europe Limited","UKINV-094822","7,257.51","Computing - Licences","130244590","27/02/2019","Strategic Finance","Agresso System Support","R4535"
"Wolverhampton City Council","http://opendatacommunities.org/id/metropolitan-district-council/wolverhampton","702041","Boulton Travel Limited","BTHS42","100.00","Client Transport","130242885","27/02/2019","Headstart","B-Safe","R3042"
"Wolverhampton City Council","http://opendatacommunities.org/id/metropolitan-district-council/wolverhampton","702041","Boulton Travel Limited","BTWCTW12.16","2,470.00","Client Transport","130243599","27/02/2019","Special Educational Needs","Special - Transport","R3042"
"Wolverhampton City Council","http://opendatacommunities.org/id/metropolitan-district-council/wolverhampton","702041","Boulton Travel Limited","BTWCTW13.12","1,805.00","Client Transport","130243600","27/02/2019","Special Educational Needs","Special - Transport","R3042"
"Wolverhampton City Council","http://opendatacommunities.org/id/metropolitan-district-council/wolverhampton","702041","Boulton Travel Limited","BTWCBM5.38","1,710.00","Client Transport","130244009","27/02/2019","Special Educational Needs","Special - Transport","R3042"
"Wolverhampton City Council","http://opendatacommunities.org/id/metropolitan-district-council/wolverhampton","702041","Boulton Travel Limited","BTWCBM4.38","1,710.00","Client Transport","130244008","27/02/2019","Special Educational Needs","Special - Transport","R3042"
"Wolverhampton City Council","http://opendatacommunities.org/id/metropolitan-district-council/wolverhampton","702041","Boulton Travel Limited","BTWCBM3.38","1,710.00","Client Transport","130244007","27/02/2019","Special Educational Needs","Special - Transport","R3042"
"Wolverhampton City Council","http://opendatacommunities.org/id/metropolitan-district-council/wolverhampton","702041","Boulton Travel Limited","BTWCBM1.38","1,710.00","Client Transport","130244006","27/02/2019","Special Educational Needs","Special - Transport","R3042"
"Wolverhampton City Council","http://opendatacommunities.org/id/metropolitan-district-council/wolverhampton","702041","Boulton Travel Limited","BTWCGPT3.13","1,710.00","Client Transport","130243597","27/02/2019","Special Educational Needs","Special - Transport","R3042"
"Wolverhampton City Council","http://opendatacommunities.org/id/metropolitan-district-council/wolverhampton","702041","Boulton Travel Limited","BTWCPF2.1","1,615.00","Client Transport","130243598","27/02/2019","Special Educational Needs","Special - Transport","R3042"
"Wolverhampton City Council","http://opendatacommunities.org/id/metropolitan-district-council/wolverhampton","702046","Bourne Leisure Limited","PO16086918","856.63","TPP - Short Breaks","130240893","06/02/2019","Carer Support","Carers Support","R5500"
"Wolverhampton City Council","http://opendatacommunities.org/id/metropolitan-district-council/wolverhampton","702046","Bourne Leisure Limited","GR00318247","29.69","TPP - Short Breaks","130177814","22/02/2019","Carer Support","Carers Support","R5500"
"Wolverhampton City Council","http://opendatacommunities.org/id/metropolitan-district-council/wolverhampton","702046","Bourne Leisure Limited","GR00318247","-29.69","TPP - Short Breaks","130177814","22/02/2019","Carer Support","Carers Support","R5500"
"Wolverhampton City Council","http://opendatacommunities.org/id/metropolitan-district-council/wolverhampton","702046","Bourne Leisure Limited","GR00318247","29.69","TPP - Short Breaks","130177814","22/02/2019","Carer Support","Carers Support","R5500"
"Wolverhampton City Council","http://opendatacommunities.org/id/metropolitan-district-council/wolverhampton","702049","Bowmat Fencing","1839","3,560.00","R&M - Departmental planned (external)","130242305","20/02/2019","Estates and Valuations","Disposal Costs","R2001"
"Wolverhampton City Council","http://opendatacommunities.org/id/metropolitan-district-council/wolverhampton","702057","Bradley Environmental Consultant Limited","30630","88.93","Services - Professional Fees","130243398","13/02/2019","Corporate Asset Management","Statutory Surveys","R4400"
"Wolverhampton City Council","http://opendatacommunities.org/id/metropolitan-district-council/wolverhampton","702057","Bradley Environmental Consultant Limited","30629","470.93","Services - Professional Fees","130243397","13/02/2019","Corporate Asset Management","Statutory Surveys","R4400"
"Wolverhampton City Council","http://opendatacommunities.org/id/metropolitan-district-council/wolverhampton","702057","Bradley Environmental Consultant Limited","30631","309.24","Services - Professional Fees","130243399","13/02/2019","Corporate Asset Management","Statutory Surveys","R4400"
"Wolverhampton City Council","http://opendatacommunities.org/id/metropolitan-district-council/wolverhampton","702057","Bradley Environmental Consultant Limited","30549","400.00","Training Expenses","130242710","06/02/2019","Audit Services","Health & Safety","R1650"
"Wolverhampton City Council","http://opendatacommunities.org/id/metropolitan-district-council/wolverhampton","702057","Bradley Environmental Consultant Limited","30572","750.00","Services - Professional Fees","130242711","06/02/2019","Fleet Services","Fleet Management","R4400"
"Wolverhampton City Council","http://opendatacommunities.org/id/metropolitan-district-council/wolverhampton","702057","Bradley Environmental Consultant Limited","30632","1,022.73","Services - Professional Fees","130243400","13/02/2019","Corporate Asset Management","Statutory Surveys","R4400"
"Wolverhampton City Council","http://opendatacommunities.org/id/metropolitan-district-council/wolverhampton","702071","Brakes/Brakefresh","9279126375","231.79","Provisions (Resale)","130243005","20/02/2019","Catering","Civic Centre Catering","R4102"
"Wolverhampton City Council","http://opendatacommunities.org/id/metropolitan-district-council/wolverhampton","702071","Brakes/Brakefresh","9279130488","242.96","Provisions (Resale)","130243006","20/02/2019","Catering","Civic Centre Catering","R4102"
"Wolverhampton City Council","http://opendatacommunities.org/id/metropolitan-district-council/wolverhampton","702071","Brakes/Brakefresh","9279151879","514.25","Provisions (Resale)","130243402","27/02/2019","Catering","Civic Centre Catering","R4102"
"Wolverhampton City Council","http://opendatacommunities.org/id/metropolitan-district-council/wolverhampton","702071","Brakes/Brakefresh","9279144465","513.80","Provisions (Resale)","130244190","22/02/2019","Catering","Civic Centre Catering","R4102"
"Wolverhampton City Council","http://opendatacommunities.org/id/metropolitan-district-council/wolverhampton","702071","Brakes/Brakefresh","9279115304","291.59","Provisions (Resale)","130240631","06/02/2019","Catering","Civic Centre Catering","R4102"
"Wolverhampton City Council","http://opendatacommunities.org/id/metropolitan-district-council/wolverhampton","702071","Brakes/Brakefresh","5506048022","-36.96","Provisions (Resale)","130242121","06/02/2019","Catering","Civic Centre Catering","R4102"
"Wolverhampton City Council","http://opendatacommunities.org/id/metropolitan-district-council/wolverhampton","702071","Brakes/Brakefresh","5506145948","-7.49","Provisions (Resale)","130243401","15/02/2019","Catering","Civic Centre Catering","R4102"
"Wolverhampton City Council","http://opendatacommunities.org/id/metropolitan-district-council/wolverhampton","702071","Brakes/Brakefresh","9279119486","191.64","Provisions (Resale)","130243004","15/02/2019","Catering","Civic Centre Catering","R4102"
"Wolverhampton City Council","http://opendatacommunities.org/id/metropolitan-district-council/wolverhampton","702093","Briggs Equiptment UK Limited","107215942","413.33","Hire of Vehicles","130243403","08/02/2019","Markets","Wholesale Market Facilities Management","R3200"
"Wolverhampton City Council","http://opendatacommunities.org/id/metropolitan-district-council/wolverhampton","702093","Briggs Equiptment UK Limited","107221100","413.33","Hire of Vehicles","130241545","13/02/2019","Markets","Wholesale Market Facilities Management","R3200"
"Wolverhampton City Council","http://opendatacommunities.org/id/metropolitan-district-council/wolverhampton","702100","Bristol City Council","8006216444","220.00","Training Expenses","130242122","20/02/2019","Public Service Reform","Workforce Development","R1650"
"Wolverhampton City Council","http://opendatacommunities.org/id/metropolitan-district-council/wolverhampton","702102","Bristol Oilskin & Overall Co Limited","116258","149.20","Equipment - Purchase","130243404","27/02/2019","Transportation","School Crossing Patrol","R4000"
"Wolverhampton City Council","http://opendatacommunities.org/id/metropolitan-district-council/wolverhampton","702102","Bristol Oilskin & Overall Co Limited","116258","125.90","Equipment - Purchase","130243404","27/02/2019","Transportation","School Crossing Patrol","R4000"
"Wolverhampton City Council","http://opendatacommunities.org/id/metropolitan-district-council/wolverhampton","702102","Bristol Oilskin & Overall Co Limited","116258","10.80","Equipment - Purchase","130243404","27/02/2019","Transportation","School Crossing Patrol","R4000"
"Wolverhampton City Council","http://opendatacommunities.org/id/metropolitan-district-council/wolverhampton","702104","Bristow & Sutor","201808","310.00","Bailiff Action","130242992","06/02/2019","Revenues & Benefits","Revenues","R9382"
"Wolverhampton City Council","http://opendatacommunities.org/id/metropolitan-district-council/wolverhampton","702104","Bristow & Sutor","202913","434.00","Bailiff Action","130244532","20/02/2019","Revenues & Benefits","Revenues","R9382"
"Wolverhampton City Council","http://opendatacommunities.org/id/metropolitan-district-council/wolverhampton","702126","BT (Phone Bills)","CM61518572 Q084SZ","66.00","Fixtures and Fittings - R&M","190557182","01/02/2019","Facilities Management","Management of Vacant Properties","R2502"
"Wolverhampton City Council","http://opendatacommunities.org/id/metropolitan-district-council/wolverhampton","702126","BT (Phone Bills)","Q054IW","84.90","Comms - Telephone Rental","130134605","22/02/2019","Adult Education","Direct Delivery Team ( L.& D.)","R4504"
"Wolverhampton City Council","http://opendatacommunities.org/id/metropolitan-district-council/wolverhampton","702126","BT (Phone Bills)","WM 3727 9286 - Q0043 - 22nd January 2019","139.20","Comms - Telephone Call charges","190563508","20/02/2019","Parking Services","Car Parks Operational Staff","R4505"
"Wolverhampton City Council","http://opendatacommunities.org/id/metropolitan-district-council/wolverhampton","702126","BT (Phone Bills)","WM 3727 9286 - Q0043 A - 22nd January 2019","80.00","Comms - Telephone Call charges","190563509","20/02/2019","Parking Services","Car Parks Operational Staff","R4505"
"Wolverhampton City Council","http://opendatacommunities.org/id/metropolitan-district-council/wolverhampton","702126","BT (Phone Bills)","CM68451735 M042&A(1)","40.00","Fixtures and Fittings - R&M","190558584","06/02/2019","Facilities Management","Victoria Square, Block 11","R2502"
"Wolverhampton City Council","http://opendatacommunities.org/id/metropolitan-district-council/wolverhampton","702126","BT (Phone Bills)","Q095 7P","77.70","Comms - Telephone Rental","190565165","22/02/2019","Bereavement Services","Crematorium","R4504"
"Wolverhampton City Council","http://opendatacommunities.org/id/metropolitan-district-council/wolverhampton","702126","BT (Phone Bills)","CM69241767 Q008DJ(1)","40.00","Fixtures and Fittings - R&M","190565168","22/02/2019","Facilities Management","Management of Vacant Properties","R2502"
"Wolverhampton City Council","http://opendatacommunities.org/id/metropolitan-district-council/wolverhampton","702126","BT (Phone Bills)","CM68451735 M042&A","25.97","Fixtures and Fittings - R&M","190558583","06/02/2019","Facilities Management","Victoria Square, Block 11","R2502"
"Wolverhampton City Council","http://opendatacommunities.org/id/metropolitan-district-council/wolverhampton","702126","BT (Phone Bills)","CM69241767 Q008DJ","77.70","Fixtures and Fittings - R&M","190565167","22/02/2019","Facilities Management","Management of Vacant Properties","R2502"
"Wolverhampton City Council","http://opendatacommunities.org/id/metropolitan-district-council/wolverhampton","702131","British Telecommunications-Openreach","A180247","21,814.75","Construction and Conversion","130242552","20/02/2019","-","GF - Accessing Growth Fund","C1100"
"Wolverhampton City Council","http://opendatacommunities.org/id/metropolitan-district-council/wolverhampton","702157","Browne Jacobson Llp","TP10422/LG/IN000004147.001","2,617.00","Insurance - General","190561980","15/02/2019","Audit Services","Legal Liability","R4962"
"Wolverhampton City Council","http://opendatacommunities.org/id/metropolitan-district-council/wolverhampton","702157","Browne Jacobson Llp","TP9978/LG IN000004479.0001","1,549.00","Insurance - General","190563511","20/02/2019","Audit Services","Legal Liability","R4962"
"Wolverhampton City Council","http://opendatacommunities.org/id/metropolitan-district-council/wolverhampton","702157","Browne Jacobson Llp","TP160206/LG IN000004261.0001","2,811.00","Insurance - General","190563512","20/02/2019","Audit Services","Legal Liability","R4962"
"Wolverhampton City Council","http://opendatacommunities.org/id/metropolitan-district-council/wolverhampton","702157","Browne Jacobson Llp","IN-000003456.0002","13,309.48","Insurance - General","130242712","20/02/2019","Audit Services","Legal Liability","R4962"
"Wolverhampton City Council","http://opendatacommunities.org/id/metropolitan-district-council/wolverhampton","702157","Browne Jacobson Llp","TP140182/LG/IN000003685.001","115.50","Insurance - General","190561979","15/02/2019","Audit Services","Legal Liability","R4962"
"Wolverhampton City Council","http://opendatacommunities.org/id/metropolitan-district-council/wolverhampton","702157","Browne Jacobson Llp","TP9778/LG IN000004472.0001","4,521.50","Insurance - General","190563510","20/02/2019","Audit Services","Legal Liability","R4962"
"Wolverhampton City Council","http://opendatacommunities.org/id/metropolitan-district-council/wolverhampton","702157","Browne Jacobson Llp","TP120183/LG IN-000003277","404.50","Insurance - General","190558587","06/02/2019","Audit Services","Legal Liability","R4962"
"Wolverhampton City Council","http://opendatacommunities.org/id/metropolitan-district-council/wolverhampton","702164","Bruton Knowles","BHM-19-24213","4,500.00","Services - Professional Fees","130240895","01/02/2019","Estates and Valuations","Estates and Valuations Team","R4400"
"Wolverhampton City Council","http://opendatacommunities.org/id/metropolitan-district-council/wolverhampton","702164","Bruton Knowles","BHM-19-24216","9,800.00","Services - Professional Fees","130240896","01/02/2019","Corporate Asset Management","Strategic Asset Management Team","R4400"
"Wolverhampton City Council","http://opendatacommunities.org/id/metropolitan-district-council/wolverhampton","702164","Bruton Knowles","BHM-19-24401","6,000.00","Services - Professional Fees","130243601","27/02/2019","Estates and Valuations","Estates and Valuations Team","R4400"
"Wolverhampton City Council","http://opendatacommunities.org/id/metropolitan-district-council/wolverhampton","702164","Bruton Knowles","BHM-19-24402","9,720.00","Services - Professional Fees","130243602","27/02/2019","Corporate Asset Management","Strategic Asset Management Team","R4400"
"Wolverhampton City Council","http://opendatacommunities.org/id/metropolitan-district-council/wolverhampton","702164","Bruton Knowles","BHM-19-24424","56,650.00","Services - Professional Fees","130243007","06/02/2019","Estates and Valuations","Estates and Valuations Team","R4400"
"Wolverhampton City Council","http://opendatacommunities.org/id/metropolitan-district-council/wolverhampton","702164","Bruton Knowles","BHM-19-24340","720.00","Services - Professional Fees","130242123","06/02/2019","Housing","MI Friendly Cities","R4400"
"Wolverhampton City Council","http://opendatacommunities.org/id/metropolitan-district-council/wolverhampton","702172","BT Global","438215","57.61","Equipment - Hire","130165342","22/02/2019","Operation & Maintenance of Existing Network","UTC Wolverhampton","R4001"
"Wolverhampton City Council","http://opendatacommunities.org/id/metropolitan-district-council/wolverhampton","702172","BT Global","438215","-57.61","Equipment - Hire","130165342","22/02/2019","Operation & Maintenance of Existing Network","UTC Wolverhampton","R4001"
"Wolverhampton City Council","http://opendatacommunities.org/id/metropolitan-district-council/wolverhampton","702172","BT Global","438215","57.61","Equipment - Hire","130165342","22/02/2019","Operation & Maintenance of Existing Network","UTC Wolverhampton","R4001"
"Wolverhampton City Council","http://opendatacommunities.org/id/metropolitan-district-council/wolverhampton","702172","BT Global","495428","644.00","Plant, Equipment, Machinery & Computer Hardware","130242308","15/02/2019","-","Integrated Transport","C3000"
"Wolverhampton City Council","http://opendatacommunities.org/id/metropolitan-district-council/wolverhampton","702172","BT Global","494862","7,518.37","Equipment - Hire","130242307","08/02/2019","Operation & Maintenance of Existing Network","Walsall Recovery Costs","R4001"
"Wolverhampton City Council","http://opendatacommunities.org/id/metropolitan-district-council/wolverhampton","702172","BT Global","493588","22,912.92","Equipment - Hire","130242439","15/02/2019","Operation & Maintenance of Existing Network","Walsall Recovery Costs","R4001"
"Wolverhampton City Council","http://opendatacommunities.org/id/metropolitan-district-council/wolverhampton","702172","BT Global","486246-485416","-1,045.00","Equipment - Hire","130242125","06/02/2019","Operation & Maintenance of Existing Network","Walsall Recovery Costs","R4001"
"Wolverhampton City Council","http://opendatacommunities.org/id/metropolitan-district-council/wolverhampton","702172","BT Global","494833","12,949.08","Equipment - Hire","130242306","06/02/2019","Operation & Maintenance of Existing Network","UTC Wolverhampton","R4001"
"Wolverhampton City Council","http://opendatacommunities.org/id/metropolitan-district-council/wolverhampton","702172","BT Global","485416","1,045.00","Equipment - Hire","130231406","06/02/2019","Operation & Maintenance of Existing Network","Walsall Recovery Costs","R4001"
"Wolverhampton City Council","http://opendatacommunities.org/id/metropolitan-district-council/wolverhampton","702181","United Living","CSIN000737","764,299.00","Construction and Conversion","130244864","08/02/2019","-","Decent Homes - Stock Improvements","C1100"
"Wolverhampton City Council","http://opendatacommunities.org/id/metropolitan-district-council/wolverhampton","702181","United Living","CSIN000739","353,360.00","R&M - Departmental planned (external)","130244865","22/02/2019","Housing Revenue Account","Amounts to be Settled with Wolverhampton Homes","R2001"
"Wolverhampton City Council","http://opendatacommunities.org/id/metropolitan-district-council/wolverhampton","702181","United Living","CSIN000738","58,155.00","Construction and Conversion","130244863","22/02/2019","-","Structural works","C1100"
"Wolverhampton City Council","http://opendatacommunities.org/id/metropolitan-district-council/wolverhampton","702181","United Living","CSIN000740","109,773.00","R&M - Departmental planned (external)","130244866","22/02/2019","Housing Revenue Account","Amounts to be Settled with Wolverhampton Homes","R2001"
"Wolverhampton City Council","http://opendatacommunities.org/id/metropolitan-district-council/wolverhampton","702181","United Living","CSIN000736","237,401.00","Construction and Conversion","130244862","22/02/2019","-","Decent Homes - Stock Improvements","C1100"
"Wolverhampton City Council","http://opendatacommunities.org/id/metropolitan-district-council/wolverhampton","702181","United Living","CSIN000737  corr","764,299.00","Construction and Conversion","130245202","22/02/2019","-","Decent Homes - Stock Improvements","C1100"
"Wolverhampton City Council","http://opendatacommunities.org/id/metropolitan-district-council/wolverhampton","702196","Burke Bros Wolverhampton Limited","52355","889.67","Storage","130244591","27/02/2019","Adult Education","Old Hall Street Main","R4910"
"Wolverhampton City Council","http://opendatacommunities.org/id/metropolitan-district-council/wolverhampton","702207","Bushbury Hill Emb Limited","1009","28,304.16","TPP - Payments to voluntary groups","130241118","13/02/2019","Headstart","Headstart - Commissioned Activity","R5200"
"Wolverhampton City Council","http://opendatacommunities.org/id/metropolitan-district-council/wolverhampton","702221","Buxton�s Limited","146670","478.33","Equipment - Purchase","130241344","13/02/2019","Environmental Maintenance","Northicote Farm","R4000"
"Wolverhampton City Council","http://opendatacommunities.org/id/metropolitan-district-council/wolverhampton","702231","Bytes Software Services Limited","541325","29,774.50","Computing - Licences","130240900","08/02/2019","ICTS","Strategic ICTS (ICT Service Budget)","R4535"
"Wolverhampton City Council","http://opendatacommunities.org/id/metropolitan-district-council/wolverhampton","702231","Bytes Software Services Limited","540911","4,656.00","Computing - Licences","130240899","06/02/2019","ICTS","Strategic ICTS (ICT Service Budget)","R4535"
"Wolverhampton City Council","http://opendatacommunities.org/id/metropolitan-district-council/wolverhampton","702253","C P Davidson & Sons Limited","700628","-100.00","Hire of Vehicles","190566348","27/02/2019","Fleet Services","Fleet Management","R3200"
"Wolverhampton City Council","http://opendatacommunities.org/id/metropolitan-district-council/wolverhampton","702253","C P Davidson & Sons Limited","17230","4,140.00","Hire of Vehicles","190566335","27/02/2019","Fleet Services","Fleet Management","R3200"
"Wolverhampton City Council","http://opendatacommunities.org/id/metropolitan-district-council/wolverhampton","702253","C P Davidson & Sons Limited","17238","2,440.00","Hire of Vehicles","190566336","27/02/2019","Fleet Services","Fleet Management","R3200"
"Wolverhampton City Council","http://opendatacommunities.org/id/metropolitan-district-council/wolverhampton","702253","C P Davidson & Sons Limited","17137","2,000.00","Hire of Vehicles","190560389","13/02/2019","Fleet Services","Fleet Management","R3200"
"Wolverhampton City Council","http://opendatacommunities.org/id/metropolitan-district-council/wolverhampton","702334","HAS Technology Limited","340624","7,050.70","Computing - Maint Agreements","130244422","27/02/2019","Strategic Commissioning","Head of Strategic Commissioning","R4534"
"Wolverhampton City Council","http://opendatacommunities.org/id/metropolitan-district-council/wolverhampton","702338","Care Shop","OP/I502039","151.48","Cleaning Supplies and Materials","130244423","20/02/2019","Learning Disability Provider","Support Plus","R2705"
"Wolverhampton City Council","http://opendatacommunities.org/id/metropolitan-district-council/wolverhampton","702372","C�Art Art Transport Limited","117392","393.00","Services - Professional Fees","130243008","27/02/2019","Visitor Economy","Literature Festival -  ACE NPO WAG","R4400"
"Wolverhampton City Council","http://opendatacommunities.org/id/metropolitan-district-council/wolverhampton","702372","C�Art Art Transport Limited","117423","449.57","Services - Professional Fees","130244013","27/02/2019","Visitor Economy","Contemporary Gallery - NPO ACE WAG","R4400"
"Wolverhampton City Council","http://opendatacommunities.org/id/metropolitan-district-council/wolverhampton","702380","Carver (Wolverhampton) Limited","PSINV01001696838","251.42","Hire of Plant","130243603","13/02/2019","Environmental Maintenance","Ground Maintenance East","R3201"
"Wolverhampton City Council","http://opendatacommunities.org/id/metropolitan-district-council/wolverhampton","702382","Carwood Motor Units Limited","1258868","75.00","Services - Professional Fees","190565736","22/02/2019","Fleet Services","Fleet Management","R4400"
"Wolverhampton City Council","http://opendatacommunities.org/id/metropolitan-district-council/wolverhampton","702382","Carwood Motor Units Limited","1257461","610.87","Services - Professional Fees","190565735","22/02/2019","Fleet Services","Fleet Management","R4400"
"Wolverhampton City Council","http://opendatacommunities.org/id/metropolitan-district-council/wolverhampton","702382","Carwood Motor Units Limited","1253297","630.00","Services - Professional Fees","190562028","15/02/2019","Fleet Services","Fleet Management","R4400"
"Wolverhampton City Council","http://opendatacommunities.org/id/metropolitan-district-council/wolverhampton","702391","Castlecroft Medical Practice","M2019Q315HL1IHCQ","90.00","TPP - Public Health Contracts","190567471","27/02/2019","Healthy Life Expectancy","Healthy Lifestyles","R5060"
"Wolverhampton City Council","http://opendatacommunities.org/id/metropolitan-district-council/wolverhampton","702391","Castlecroft Medical Practice","M2018Q315SHIUDFQ","100.00","TPP - Public Health Contracts","190557201","01/02/2019","Starting and Developing Well","Sexual Health","R5060"
"Wolverhampton City Council","http://opendatacommunities.org/id/metropolitan-district-council/wolverhampton","702391","Castlecroft Medical Practice","M2019Q315HL2COMQ","1,550.00","TPP - Public Health Contracts","190567472","27/02/2019","Healthy Life Expectancy","Healthy Lifestyles","R5060"
"Wolverhampton City Council","http://opendatacommunities.org/id/metropolitan-district-council/wolverhampton","702391","Castlecroft Medical Practice","M2018Q315SHCIFBQ","160.00","TPP - Public Health Contracts","190557200","01/02/2019","Starting and Developing Well","Sexual Health","R5060"
"Wolverhampton City Council","http://opendatacommunities.org/id/metropolitan-district-council/wolverhampton","702391","Castlecroft Medical Practice","M2018Q315SHCIFRQ","405.00","TPP - Public Health Contracts","190557199","01/02/2019","Starting and Developing Well","Sexual Health","R5060"
"Wolverhampton City Council","http://opendatacommunities.org/id/metropolitan-district-council/wolverhampton","702391","Castlecroft Medical Practice","M2018Q315SHCIFIQ","550.00","TPP - Public Health Contracts","190557198","01/02/2019","Starting and Developing Well","Sexual Health","R5060"
"Wolverhampton City Council","http://opendatacommunities.org/id/metropolitan-district-council/wolverhampton","702395","Catch 22 Charity Limited-Midlands&North.","58034","600.00","Grant Payments","130240076","01/02/2019","Community Safety","SWP - Gangs","R4700"
"Wolverhampton City Council","http://opendatacommunities.org/id/metropolitan-district-council/wolverhampton","702395","Catch 22 Charity Limited-Midlands&North.","58033","600.00","Grant Payments","130240075","01/02/2019","Community Safety","SWP - Gangs","R4700"
"Wolverhampton City Council","http://opendatacommunities.org/id/metropolitan-district-council/wolverhampton","702396","Cater Walsh Reporting Ltd","109897","20.25","Services - Professional Fees","130244923","22/02/2019","Legal Services","Centralised External Legal Costs","R4400"
"Wolverhampton City Council","http://opendatacommunities.org/id/metropolitan-district-council/wolverhampton","702396","Cater Walsh Reporting Ltd","109700","31.50","Services - Professional Fees","130245468","27/02/2019","Legal Services","Centralised External Legal Costs","R4400"
"Wolverhampton City Council","http://opendatacommunities.org/id/metropolitan-district-council/wolverhampton","702396","Cater Walsh Reporting Ltd","109835","78.30","Services - Professional Fees","130245469","27/02/2019","Legal Services","Centralised External Legal Costs","R4400"
"Wolverhampton City Council","http://opendatacommunities.org/id/metropolitan-district-council/wolverhampton","702396","Cater Walsh Reporting Ltd","109865","66.75","Services - Professional Fees","130245470","27/02/2019","Legal Services","Centralised External Legal Costs","R4400"
"Wolverhampton City Council","http://opendatacommunities.org/id/metropolitan-district-council/wolverhampton","702396","Cater Walsh Reporting Ltd","109948","107.44","Services - Professional Fees","130242127","06/02/2019","Legal Services","Centralised External Legal Costs","R4400"
"Wolverhampton City Council","http://opendatacommunities.org/id/metropolitan-district-council/wolverhampton","702396","Cater Walsh Reporting Ltd","109944","120.94","Services - Professional Fees","130242126","06/02/2019","Legal Services","Centralised External Legal Costs","R4400"
"Wolverhampton City Council","http://opendatacommunities.org/id/metropolitan-district-council/wolverhampton","702396","Cater Walsh Reporting Ltd","109960","36.18","Services - Professional Fees","130244286","20/02/2019","Legal Services","Centralised External Legal Costs","R4400"
"Wolverhampton City Council","http://opendatacommunities.org/id/metropolitan-district-council/wolverhampton","702413","CBRE Limited","50BR100057581","571.25","Services - Consultants","130240381","20/02/2019","Housing Revenue Account","HRA General","R4404"
"Wolverhampton City Council","http://opendatacommunities.org/id/metropolitan-district-council/wolverhampton","702413","CBRE Limited","50BCD00049398","3,720.00","Services - Consultants","130238955","20/02/2019","Housing Revenue Account","HRA General","R4404"
"Wolverhampton City Council","http://opendatacommunities.org/id/metropolitan-district-council/wolverhampton","702413","CBRE Limited","50BR100057916","542.50","Services - Consultants","130240189","20/02/2019","Housing Revenue Account","HRA General","R4404"
"Wolverhampton City Council","http://opendatacommunities.org/id/metropolitan-district-council/wolverhampton","702435","Cent. Learn. PShip Trust T/A Woden","Early Years Autumn term Final Payment and Spring Term Interim Payment","37,366.50","Grant Payments","190561946","15/02/2019","Central Education","Academy Early years","R4700"
"Wolverhampton City Council","http://opendatacommunities.org/id/metropolitan-district-council/wolverhampton","702450","GO Carz","14924","1,375.68","Section 17","130243153","13/02/2019","Strengthening Families","Court Team","R6403"
"Wolverhampton City Council","http://opendatacommunities.org/id/metropolitan-district-council/wolverhampton","702450","GO Carz","15601","139.32","Client Transport","130245472","27/02/2019","Adults Assessment & Care Management West","Adult Services � West","R3042"
"Wolverhampton City Council","http://opendatacommunities.org/id/metropolitan-district-council/wolverhampton","702450","GO Carz","07378","74.88","Client Transport","130203310","13/02/2019","Children & Young People In Care","Looked After Team 1","R3042"
"Wolverhampton City Council","http://opendatacommunities.org/id/metropolitan-district-council/wolverhampton","702450","GO Carz","04219","250.72","Client Transport","130203309","13/02/2019","Children & Young People In Care","Looked After Team 1","R3042"
"Wolverhampton City Council","http://opendatacommunities.org/id/metropolitan-district-council/wolverhampton","702450","GO Carz","15178","900.00","Client Transport","130243765","27/02/2019","Special Educational Needs","Primary - Transport","R3042"
"Wolverhampton City Council","http://opendatacommunities.org/id/metropolitan-district-council/wolverhampton","702450","GO Carz","15593","666.00","Client Transport","130243776","27/02/2019","Special Educational Needs","Secondary- Transport","R3042"
"Wolverhampton City Council","http://opendatacommunities.org/id/metropolitan-district-council/wolverhampton","702450","GO Carz","15375","855.00","Client Transport","130243773","27/02/2019","Special Educational Needs","Special - Transport","R3042"
"Wolverhampton City Council","http://opendatacommunities.org/id/metropolitan-district-council/wolverhampton","702450","GO Carz","15600","31.44","Client Transport","130245242","27/02/2019","Adults Assessment & Care Management West","Adult Services � West","R3042"
"Wolverhampton City Council","http://opendatacommunities.org/id/metropolitan-district-council/wolverhampton","702450","GO Carz","15376","1,458.21","Client Transport","130243774","27/02/2019","Special Educational Needs","Special - Transport","R3042"
"Wolverhampton City Council","http://opendatacommunities.org/id/metropolitan-district-council/wolverhampton","702450","GO Carz","15293","1,160.00","Client Transport","130243772","27/02/2019","Special Educational Needs","Special - Transport","R3042"
"Wolverhampton City Council","http://opendatacommunities.org/id/metropolitan-district-council/wolverhampton","702450","GO Carz","15177","610.50","Client Transport","130243764","27/02/2019","Special Educational Needs","Primary - Transport","R3042"
"Wolverhampton City Council","http://opendatacommunities.org/id/metropolitan-district-council/wolverhampton","702450","GO Carz","15181","1,830.00","Client Transport","130243767","27/02/2019","Special Educational Needs","Special - Transport","R3042"
"Wolverhampton City Council","http://opendatacommunities.org/id/metropolitan-district-council/wolverhampton","702450","GO Carz","15385","2,651.50","Section 17","130243405","27/02/2019","Strengthening Families","Court Team","R6403"
"Wolverhampton City Council","http://opendatacommunities.org/id/metropolitan-district-council/wolverhampton","702450","GO Carz","15599","46.32","Client Transport","130245471","27/02/2019","Adults Assessment & Care Management West","Adult Services � West","R3042"
"Wolverhampton City Council","http://opendatacommunities.org/id/metropolitan-district-council/wolverhampton","702450","GO Carz","15602","44.88","Client Transport","130245473","27/02/2019","Adults Assessment & Care Management West","Adult Services � West","R3042"
"Wolverhampton City Council","http://opendatacommunities.org/id/metropolitan-district-council/wolverhampton","702450","GO Carz","15185","2,313.44","Client Transport","130243769","27/02/2019","Special Educational Needs","Special - Transport","R3042"
"Wolverhampton City Council","http://opendatacommunities.org/id/metropolitan-district-council/wolverhampton","702450","GO Carz","15179","1,660.85","Client Transport","130243766","27/02/2019","Special Educational Needs","Special - Transport","R3042"
"Wolverhampton City Council","http://opendatacommunities.org/id/metropolitan-district-council/wolverhampton","702450","GO Carz","15180","1,548.00","Client Transport","130244765","27/02/2019","Special Educational Needs","Primary - Transport","R3042"
"Wolverhampton City Council","http://opendatacommunities.org/id/metropolitan-district-council/wolverhampton","702450","GO Carz","15187","1,548.00","Client Transport","130243770","27/02/2019","Special Educational Needs","Primary - Transport","R3042"
"Wolverhampton City Council","http://opendatacommunities.org/id/metropolitan-district-council/wolverhampton","702450","GO Carz","15592","1,520.00","Client Transport","130243775","27/02/2019","Special Educational Needs","Special - Transport","R3042"
"Wolverhampton City Council","http://opendatacommunities.org/id/metropolitan-district-council/wolverhampton","702450","GO Carz","15182","1,614.62","Client Transport","130243768","27/02/2019","Special Educational Needs","Secondary- Transport","R3042"
"Wolverhampton City Council","http://opendatacommunities.org/id/metropolitan-district-council/wolverhampton","702450","GO Carz","15172","437.64","Client Transport","130243763","27/02/2019","Children & Young People In Care","Childrens with Disabilities Team","R3042"
"Wolverhampton City Council","http://opendatacommunities.org/id/metropolitan-district-council/wolverhampton","702450","GO Carz","14195","12.60","Client Transport","130239331","06/02/2019","Strengthening Families","CP Area 2 - Bilston/Rocket Pool","R3042"
"Wolverhampton City Council","http://opendatacommunities.org/id/metropolitan-district-council/wolverhampton","702450","GO Carz","1386","818.00","Client Transport","130055840","22/02/2019","Strengthening Families","CP Area 2 - Bilston/Rocket Pool","R3042"
"Wolverhampton City Council","http://opendatacommunities.org/id/metropolitan-district-council/wolverhampton","702452","Central Workwear","4616","1,831.50","Laundry Expenses","130242886","27/02/2019","Catering","Education Catering - General Overheads","R4202"
"Wolverhampton City Council","http://opendatacommunities.org/id/metropolitan-district-council/wolverhampton","702453","Central Youth Theatre","2","163.00","Services - Professional Fees","190565928","27/02/2019","Local Economy","Literature Festival","R4400"
"Wolverhampton City Council","http://opendatacommunities.org/id/metropolitan-district-council/wolverhampton","702477","Changing Our Lives","2018-19/020","2,375.00","Training Expenses","130244287","20/02/2019","Public Service Reform","Centralised Training","R1650"
"Wolverhampton City Council","http://opendatacommunities.org/id/metropolitan-district-council/wolverhampton","702497","Charterhouse Voice & Data PLC","T634654","278.87","Comms - Telephone Call charges","130240487","06/02/2019","ICTS","Strategic ICTS (ICT Service Budget)","R4505"
"Wolverhampton City Council","http://opendatacommunities.org/id/metropolitan-district-council/wolverhampton","702497","Charterhouse Voice & Data PLC","TELINV005839","2,856.00","Services - General Licences","130239973","01/02/2019","ICTS","Strategic ICTS (ICT Service Budget)","R4402"
"Wolverhampton City Council","http://opendatacommunities.org/id/metropolitan-district-council/wolverhampton","702497","Charterhouse Voice & Data PLC","T628383","1,440.53","Comms - Telephone Call charges","130244851","22/02/2019","ICTS","Strategic ICTS (ICT Service Budget)","R4505"
"Wolverhampton City Council","http://opendatacommunities.org/id/metropolitan-district-council/wolverhampton","702519","Child And Family Training Limited","1110","5,532.15","Training Expenses","130245243","27/02/2019","Public Service Reform","Workforce Development","R1650"
"Wolverhampton City Council","http://opendatacommunities.org/id/metropolitan-district-council/wolverhampton","702530","Chipside Limited","S191409","160.00","Computing - Purchase of Hardware","130244592","27/02/2019","Parking Services","Parking Enforcement","R4530"
"Wolverhampton City Council","http://opendatacommunities.org/id/metropolitan-district-council/wolverhampton","702530","Chipside Limited","S191400","409.60","Computing - Purchase of Hardware","130244766","27/02/2019","Parking Services","Parking Enforcement","R4530"
"Wolverhampton City Council","http://opendatacommunities.org/id/metropolitan-district-council/wolverhampton","702530","Chipside Limited","S191083","160.00","Computing - Purchase of Hardware","130241229","01/02/2019","Parking Services","Parking Enforcement","R4530"
"Wolverhampton City Council","http://opendatacommunities.org/id/metropolitan-district-council/wolverhampton","702543","Chubb Fire & Security Limited","7315771","135.80","Services - Security","130240907","15/02/2019","Maintenance Programme","Centralised R&M","R4405"
"Wolverhampton City Council","http://opendatacommunities.org/id/metropolitan-district-council/wolverhampton","702543","Chubb Fire & Security Limited","7248019","35.00","Services - Security","130239189","15/02/2019","Maintenance Programme","Centralised R&M","R4405"
"Wolverhampton City Council","http://opendatacommunities.org/id/metropolitan-district-council/wolverhampton","702543","Chubb Fire & Security Limited","7233650","35.00","Services - Security","130239840","15/02/2019","Maintenance Programme","Centralised R&M","R4405"
"Wolverhampton City Council","http://opendatacommunities.org/id/metropolitan-district-council/wolverhampton","702543","Chubb Fire & Security Limited","7248021","204.20","Services - Security","130239841","15/02/2019","Maintenance Programme","Centralised R&M","R4405"
"Wolverhampton City Council","http://opendatacommunities.org/id/metropolitan-district-council/wolverhampton","702543","Chubb Fire & Security Limited","7297034","260.00","Services - Security","130239336","15/02/2019","Maintenance Programme","Centralised R&M","R4405"
"Wolverhampton City Council","http://opendatacommunities.org/id/metropolitan-district-council/wolverhampton","702543","Chubb Fire & Security Limited","7225379","227.94","Services - Security","130239839","15/02/2019","Maintenance Programme","Centralised R&M","R4405"
"Wolverhampton City Council","http://opendatacommunities.org/id/metropolitan-district-council/wolverhampton","702543","Chubb Fire & Security Limited","7315770","158.60","Services - Security","130239337","27/02/2019","Public Service Reform","Mayoral Expenses","R4405"
"Wolverhampton City Council","http://opendatacommunities.org/id/metropolitan-district-council/wolverhampton","702543","Chubb Fire & Security Limited","7257039","35.00","Services - Security","130235799","27/02/2019","Local Economy","Central Library","R4405"
"Wolverhampton City Council","http://opendatacommunities.org/id/metropolitan-district-council/wolverhampton","702543","Chubb Fire & Security Limited","7340533","143.10","Services - Security","130241679","13/02/2019","Maintenance Programme","Centralised R&M","R4405"
"Wolverhampton City Council","http://opendatacommunities.org/id/metropolitan-district-council/wolverhampton","702543","Chubb Fire & Security Limited","7241380","295.40","Services - Security","130235798","13/02/2019","Maintenance Programme","Centralised R&M","R4405"
"Wolverhampton City Council","http://opendatacommunities.org/id/metropolitan-district-council/wolverhampton","702557","Cipfa","3141711","12,000.00","Services - Consultants","130242887","27/02/2019","Corporate Asset Management","Assets Service Transformation Programme","R4404"
"Wolverhampton City Council","http://opendatacommunities.org/id/metropolitan-district-council/wolverhampton","702557","Cipfa","3141711","198.45","Services - Consultants","130242887","27/02/2019","Corporate Asset Management","Assets Service Transformation Programme","R4404"
"Wolverhampton City Council","http://opendatacommunities.org/id/metropolitan-district-council/wolverhampton","702572","City Demolition Birmingham Limited","3229","78,731.25","Construction and Conversion","130244015","20/02/2019","-","GF - Disposals Programme (Non-Strategic)","C1100"
"Wolverhampton City Council","http://opendatacommunities.org/id/metropolitan-district-council/wolverhampton","702579","City Of Wolverhampton College","101819","150.00","Training Expenses","130240642","06/02/2019","Public Service Reform","Workforce Development","R1650"
"Wolverhampton City Council","http://opendatacommunities.org/id/metropolitan-district-council/wolverhampton","702607","Clearview Wales","2136/T","280.00","Window Cleaning","130244194","27/02/2019","School Planning & Resources","Towers Outdoor Education Centre","R2701"
"Wolverhampton City Council","http://opendatacommunities.org/id/metropolitan-district-council/wolverhampton","702607","Clearview Wales","2135/TOWERS","210.00","Window Cleaning","130244193","27/02/2019","School Planning & Resources","Towers Outdoor Education Centre","R2701"
"Wolverhampton City Council","http://opendatacommunities.org/id/metropolitan-district-council/wolverhampton","702610","Clearwater Technology Limited","SIN196514","640.00","R&M - Departmental planned (external)","130243604","27/02/2019","Maintenance Programme","Civic Centre Repairs & Maintenance","R2001"
"Wolverhampton City Council","http://opendatacommunities.org/id/metropolitan-district-council/wolverhampton","702610","Clearwater Technology Limited","SIN196515","665.00","R&M - Departmental planned (external)","130243406","27/02/2019","Maintenance Programme","Civic Centre Repairs & Maintenance","R2001"
"Wolverhampton City Council","http://opendatacommunities.org/id/metropolitan-district-council/wolverhampton","702643","Cobalt Telephone Technologies Limited","R190131-137","1,815.20","Computing - Maint Agreements","130243407","15/02/2019","Parking Services","Car Parks Operational Staff","R4534"
"Wolverhampton City Council","http://opendatacommunities.org/id/metropolitan-district-council/wolverhampton","702643","Cobalt Telephone Technologies Limited","C190136","12,237.51","Services - Bank Charges","130243009","06/02/2019","Central Corporate Budgets","Corporate Management (Bank Charges)","R4403"
"Wolverhampton City Council","http://opendatacommunities.org/id/metropolitan-district-council/wolverhampton","702658","Coin-A-Drink Limited","366881-1","27.73","Equipment - Hire","130242888","20/02/2019","Bereavement Services","Crematorium","R4001"
"Wolverhampton City Council","http://opendatacommunities.org/id/metropolitan-district-council/wolverhampton","702685","Digraph Transport Supplies Ltd","EUIV08089","40.00","Equipment - Purchase","190563471","20/02/2019","Fleet Services","Fleet Management","R4000"
"Wolverhampton City Council","http://opendatacommunities.org/id/metropolitan-district-council/wolverhampton","702685","Digraph Transport Supplies Ltd","EUIV08089","150.52","Equipment - Purchase","190563471","20/02/2019","Fleet Services","Fleet Management","R4000"
"Wolverhampton City Council","http://opendatacommunities.org/id/metropolitan-district-council/wolverhampton","702685","Digraph Transport Supplies Ltd","EUIV08193","75.26","Equipment - Purchase","190563473","20/02/2019","Fleet Services","Fleet Management","R4000"
"Wolverhampton City Council","http://opendatacommunities.org/id/metropolitan-district-council/wolverhampton","702685","Digraph Transport Supplies Ltd","EUIV07415","33.30","Equipment - Purchase","190556539","01/02/2019","Fleet Services","Fleet Management","R4000"
"Wolverhampton City Council","http://opendatacommunities.org/id/metropolitan-district-council/wolverhampton","702685","Digraph Transport Supplies Ltd","EUIV07437","9.16","Equipment - Purchase","190556540","01/02/2019","Fleet Services","Fleet Management","R4000"
"Wolverhampton City Council","http://opendatacommunities.org/id/metropolitan-district-council/wolverhampton","702685","Digraph Transport Supplies Ltd","EUIV07437","7.16","Equipment - Purchase","190556540","01/02/2019","Fleet Services","Fleet Management","R4000"
"Wolverhampton City Council","http://opendatacommunities.org/id/metropolitan-district-council/wolverhampton","702685","Digraph Transport Supplies Ltd","EUIV07807","57.70","Equipment - Purchase","190556542","01/02/2019","Fleet Services","Fleet Management","R4000"
"Wolverhampton City Council","http://opendatacommunities.org/id/metropolitan-district-council/wolverhampton","702685","Digraph Transport Supplies Ltd","EUIV07807","48.70","Equipment - Purchase","190556542","01/02/2019","Fleet Services","Fleet Management","R4000"
"Wolverhampton City Council","http://opendatacommunities.org/id/metropolitan-district-council/wolverhampton","702685","Digraph Transport Supplies Ltd","EUIV07754","33.42","Protective Clothing","190556541","01/02/2019","Fleet Services","Fleet Management","R4200"
"Wolverhampton City Council","http://opendatacommunities.org/id/metropolitan-district-council/wolverhampton","702685","Digraph Transport Supplies Ltd","EUIV07972","49.60","Equipment - Purchase","190562058","15/02/2019","Fleet Services","Fleet Management","R4000"
"Wolverhampton City Council","http://opendatacommunities.org/id/metropolitan-district-council/wolverhampton","702685","Digraph Transport Supplies Ltd","EUIV08192","67.16","Equipment - Purchase","190563472","20/02/2019","Fleet Services","Fleet Management","R4000"
"Wolverhampton City Council","http://opendatacommunities.org/id/metropolitan-district-council/wolverhampton","702685","Digraph Transport Supplies Ltd","TI258207","99.24","Equipment - Purchase","190563481","20/02/2019","Fleet Services","Fleet Management","R4000"
"Wolverhampton City Council","http://opendatacommunities.org/id/metropolitan-district-council/wolverhampton","702685","Digraph Transport Supplies Ltd","EUIV07493","54.72","Equipment - Purchase","190557596","06/02/2019","Fleet Services","Fleet Management","R4000"
"Wolverhampton City Council","http://opendatacommunities.org/id/metropolitan-district-council/wolverhampton","702685","Digraph Transport Supplies Ltd","EUIV07492","54.72","Equipment - Purchase","190557595","06/02/2019","Fleet Services","Fleet Management","R4000"
"Wolverhampton City Council","http://opendatacommunities.org/id/metropolitan-district-council/wolverhampton","702685","Digraph Transport Supplies Ltd","EUIV07239","55.86","Equipment - Purchase","190557594","06/02/2019","Fleet Services","Fleet Management","R4000"
"Wolverhampton City Council","http://opendatacommunities.org/id/metropolitan-district-council/wolverhampton","702685","Digraph Transport Supplies Ltd","EUIV07239","9.72","Equipment - Purchase","190557594","06/02/2019","Fleet Services","Fleet Management","R4000"
"Wolverhampton City Council","http://opendatacommunities.org/id/metropolitan-district-council/wolverhampton","702685","Digraph Transport Supplies Ltd","EUIV07239","120.20","Equipment - Purchase","190557594","06/02/2019","Fleet Services","Fleet Management","R4000"
"Wolverhampton City Council","http://opendatacommunities.org/id/metropolitan-district-council/wolverhampton","702696","Community Playthings/Community Prods","809VZ-1","180.00","Equipment - Purchase","130241345","13/02/2019","Special Educational Needs","SEN Early Years Team","R4000"
"Wolverhampton City Council","http://opendatacommunities.org/id/metropolitan-district-council/wolverhampton","702697","Community Transport","20156","1,866.60","Client Transport","130245246","27/02/2019","Special Educational Needs","Special - Transport","R3042"
"Wolverhampton City Council","http://opendatacommunities.org/id/metropolitan-district-council/wolverhampton","702697","Community Transport","20155","2,209.32","Client Transport","130245245","27/02/2019","Special Educational Needs","Special - Transport","R3042"
"Wolverhampton City Council","http://opendatacommunities.org/id/metropolitan-district-council/wolverhampton","702708","Complete Care Shop Limited","2389554","44.85","Services - Supplies and Services to service users","130242441","27/02/2019","Older People Provider Services","Bradley Lodge Resource Centre","R4408"
"Wolverhampton City Council","http://opendatacommunities.org/id/metropolitan-district-council/wolverhampton","702708","Complete Care Shop Limited","2389086","60.60","Cleaning Supplies and Materials","130242440","27/02/2019","Older People Provider Services","Reablement Team","R2705"
"Wolverhampton City Council","http://opendatacommunities.org/id/metropolitan-district-council/wolverhampton","702717","Computershare Vouchers(Ex Busy Bees)","S-0002846479","816.32","Service Charges","130244767","22/02/2019","The Hub","Busy Bees Childcare Vouchers","R2205"
"Wolverhampton City Council","http://opendatacommunities.org/id/metropolitan-district-council/wolverhampton","702717","Computershare Vouchers(Ex Busy Bees)","S-0002828621","862.87","Service Charges","130242985","06/02/2019","The Hub","Busy Bees Childcare Vouchers","R2205"
"Wolverhampton City Council","http://opendatacommunities.org/id/metropolitan-district-council/wolverhampton","702719","Concentric","P19833820190208","520.00","Client Allowances","190560491","13/02/2019","Children & Young People In Care","Looked After Team 2","R6301"
"Wolverhampton City Council","http://opendatacommunities.org/id/metropolitan-district-council/wolverhampton","702723","Concept Elevators (UK) Ltd","NV156309","54.00","R&M - Departmental planned (external)","130241680","06/02/2019","Maintenance Programme","Centralised R&M","R2001"
"Wolverhampton City Council","http://opendatacommunities.org/id/metropolitan-district-council/wolverhampton","702723","Concept Elevators (UK) Ltd","NV156509","18.00","R&M - Departmental planned (external)","130241977","06/02/2019","Maintenance Programme","Centralised R&M","R2001"
"Wolverhampton City Council","http://opendatacommunities.org/id/metropolitan-district-council/wolverhampton","702723","Concept Elevators (UK) Ltd","NV156876","712.89","R&M - Departmental planned (external)","130243408","20/02/2019","Maintenance Programme","Centralised R&M","R2001"
"Wolverhampton City Council","http://opendatacommunities.org/id/metropolitan-district-council/wolverhampton","702723","Concept Elevators (UK) Ltd","NV156499","330.63","R&M - Departmental planned (external)","130241685","15/02/2019","Maintenance Programme","Centralised R&M","R2001"
"Wolverhampton City Council","http://opendatacommunities.org/id/metropolitan-district-council/wolverhampton","702723","Concept Elevators (UK) Ltd","NV156771","54.00","R&M - Departmental planned (external)","130243154","15/02/2019","Maintenance Programme","Centralised R&M","R2001"
"Wolverhampton City Council","http://opendatacommunities.org/id/metropolitan-district-council/wolverhampton","702723","Concept Elevators (UK) Ltd","NV156882","90.00","R&M - Departmental planned (external)","130243155","15/02/2019","Maintenance Programme","Centralised R&M","R2001"
"Wolverhampton City Council","http://opendatacommunities.org/id/metropolitan-district-council/wolverhampton","702723","Concept Elevators (UK) Ltd","NV156351","54.00","R&M - Departmental planned (external)","130241683","20/02/2019","Maintenance Programme","Centralised R&M","R2001"
"Wolverhampton City Council","http://opendatacommunities.org/id/metropolitan-district-council/wolverhampton","702723","Concept Elevators (UK) Ltd","NV156344","144.00","R&M - Departmental planned (external)","130241682","06/02/2019","Maintenance Programme","Centralised R&M","R2001"
"Wolverhampton City Council","http://opendatacommunities.org/id/metropolitan-district-council/wolverhampton","702723","Concept Elevators (UK) Ltd","NV156462","45.00","R&M - Departmental planned (external)","130241684","06/02/2019","Maintenance Programme","Centralised R&M","R2001"
"Wolverhampton City Council","http://opendatacommunities.org/id/metropolitan-district-council/wolverhampton","702723","Concept Elevators (UK) Ltd","NV156343","63.00","R&M - Departmental planned (external)","130241681","06/02/2019","Maintenance Programme","Centralised R&M","R2001"
"Wolverhampton City Council","http://opendatacommunities.org/id/metropolitan-district-council/wolverhampton","702723","Concept Elevators (UK) Ltd","NV156707","1,201.00","R&M - Departmental planned (external)","130242443","06/02/2019","Maintenance Programme","Centralised R&M","R2001"
"Wolverhampton City Council","http://opendatacommunities.org/id/metropolitan-district-council/wolverhampton","702723","Concept Elevators (UK) Ltd","NV156540","864.00","R&M - Departmental planned (external)","130242442","06/02/2019","Maintenance Programme","Centralised R&M","R2001"
"Wolverhampton City Council","http://opendatacommunities.org/id/metropolitan-district-council/wolverhampton","702723","Concept Elevators (UK) Ltd","NV157454","72.00","R&M - Departmental planned (external)","130244197","22/02/2019","Maintenance Programme","Centralised R&M","R2001"
"Wolverhampton City Council","http://opendatacommunities.org/id/metropolitan-district-council/wolverhampton","702723","Concept Elevators (UK) Ltd","NV157432","324.00","R&M - Departmental planned (external)","130244196","22/02/2019","Maintenance Programme","Centralised R&M","R2001"
"Wolverhampton City Council","http://opendatacommunities.org/id/metropolitan-district-council/wolverhampton","702723","Concept Elevators (UK) Ltd","NV157431","534.50","R&M - Departmental planned (external)","130244195","22/02/2019","Maintenance Programme","Centralised R&M","R2001"
"Wolverhampton City Council","http://opendatacommunities.org/id/metropolitan-district-council/wolverhampton","702738","Connevans Limited","IN415841","41.00","Services - Assistive technology","130244931","27/02/2019","Special Educational Needs","SEN Sensory Inclusion","R4407"
"Wolverhampton City Council","http://opendatacommunities.org/id/metropolitan-district-council/wolverhampton","702738","Connevans Limited","IN415344","5,282.70","Services - Assistive technology","130244291","27/02/2019","Special Educational Needs","SEN Sensory Inclusion","R4407"
"Wolverhampton City Council","http://opendatacommunities.org/id/metropolitan-district-council/wolverhampton","702741","MIR Sheward Musical Instrument repairs","2291","260.00","Services - Professional Fees","130245247","27/02/2019","School Planning & Resources","Music Support Team","R4400"
"Wolverhampton City Council","http://opendatacommunities.org/id/metropolitan-district-council/wolverhampton","702741","MIR Sheward Musical Instrument repairs","2286","710.00","Services - Professional Fees","130243778","15/02/2019","School Planning & Resources","Music Support Team","R4400"
"Wolverhampton City Council","http://opendatacommunities.org/id/metropolitan-district-council/wolverhampton","702766","Cooper Mobile Services Ltd","42689","291.00","Insurance - General","130240915","13/02/2019","Waste and Recycling Service","Waste Man.Partnership-Domestic Coll�n","R4962"
"Wolverhampton City Council","http://opendatacommunities.org/id/metropolitan-district-council/wolverhampton","702766","Cooper Mobile Services Ltd","42540","1,865.45","Vehicle Maintenance - Repairs","130242554","06/02/2019","Waste and Recycling Service","Anchor Lane Civic Amenity Site","R3022"
"Wolverhampton City Council","http://opendatacommunities.org/id/metropolitan-district-council/wolverhampton","702766","Cooper Mobile Services Ltd","42613","95.00","Hire of Vehicles","190560405","13/02/2019","Fleet Services","Fleet Management","R3200"
"Wolverhampton City Council","http://opendatacommunities.org/id/metropolitan-district-council/wolverhampton","702766","Cooper Mobile Services Ltd","13492","700.00","Hire of Vehicles","190560388","13/02/2019","Fleet Services","Fleet Management","R3200"
"Wolverhampton City Council","http://opendatacommunities.org/id/metropolitan-district-council/wolverhampton","702766","Cooper Mobile Services Ltd","13414","1,350.00","Hire of Vehicles","190560387","13/02/2019","Fleet Services","Fleet Management","R3200"
"Wolverhampton City Council","http://opendatacommunities.org/id/metropolitan-district-council/wolverhampton","702766","Cooper Mobile Services Ltd","13553","3,220.00","Hire of Vehicles","130242716","27/02/2019","Waste and Recycling Service","Waste Collection and Recycling Service - General","R3200"
"Wolverhampton City Council","http://opendatacommunities.org/id/metropolitan-district-council/wolverhampton","702766","Cooper Mobile Services Ltd","13554","1,400.00","Hire of Vehicles","130242717","27/02/2019","Waste and Recycling Service","Waste Collection and Recycling Service - General","R3200"
"Wolverhampton City Council","http://opendatacommunities.org/id/metropolitan-district-council/wolverhampton","702766","Cooper Mobile Services Ltd","13541","43.75","Hire of Vehicles","130244770","22/02/2019","Waste and Recycling Service","Waste Collection and Recycling Service - General","R3200"
"Wolverhampton City Council","http://opendatacommunities.org/id/metropolitan-district-council/wolverhampton","702766","Cooper Mobile Services Ltd","42541","1,865.45","Vehicle Maintenance - Repairs","130242718","06/02/2019","Waste and Recycling Service","Shaw Road Civic Amenity Site","R3022"
"Wolverhampton City Council","http://opendatacommunities.org/id/metropolitan-district-council/wolverhampton","702766","Cooper Mobile Services Ltd","13555","700.00","Hire of Vehicles","190566327","27/02/2019","Fleet Services","Fleet Management","R3200"
"Wolverhampton City Council","http://opendatacommunities.org/id/metropolitan-district-council/wolverhampton","702766","Cooper Mobile Services Ltd","13552","1,892.00","Hire of Vehicles","130242715","27/02/2019","Waste and Recycling Service","Waste Collection and Recycling Service - General","R3200"
"Wolverhampton City Council","http://opendatacommunities.org/id/metropolitan-district-council/wolverhampton","702766","Cooper Mobile Services Ltd","42771","257.50","Insurance - General","130241846","20/02/2019","Waste and Recycling Service","Waste Man.Partnership-Domestic Coll�n","R4962"
"Wolverhampton City Council","http://opendatacommunities.org/id/metropolitan-district-council/wolverhampton","702766","Cooper Mobile Services Ltd","42739","3,540.00","Vehicle Maintenance - Repairs","130243780","15/02/2019","Waste and Recycling Service","Waste Man.Partnership-Transfer Station","R3022"
"Wolverhampton City Council","http://opendatacommunities.org/id/metropolitan-district-council/wolverhampton","702766","Cooper Mobile Services Ltd","42731","1,447.95","Vehicle Maintenance - Repairs","130243779","13/02/2019","Waste and Recycling Service","Waste Man.Partnership-Transfer Station","R3022"
"Wolverhampton City Council","http://opendatacommunities.org/id/metropolitan-district-council/wolverhampton","702766","Cooper Mobile Services Ltd","42805","106.00","Hire of Vehicles","130242130","20/02/2019","Waste and Recycling Service","Waste Collection and Recycling Service - General","R3200"
"Wolverhampton City Council","http://opendatacommunities.org/id/metropolitan-district-council/wolverhampton","702766","Cooper Mobile Services Ltd","13413","750.00","Hire of Vehicles","190560386","13/02/2019","Fleet Services","Fleet Management","R3200"
"Wolverhampton City Council","http://opendatacommunities.org/id/metropolitan-district-council/wolverhampton","702766","Cooper Mobile Services Ltd","42765","964.88","Insurance - General","130242309","20/02/2019","Audit Services","Motor Vehicles","R4962"
"Wolverhampton City Council","http://opendatacommunities.org/id/metropolitan-district-council/wolverhampton","702766","Cooper Mobile Services Ltd","42765","500.00","Insurance - General","130242309","20/02/2019","Waste and Recycling Service","Waste Man.Partnership-Domestic Coll�n","R4962"
"Wolverhampton City Council","http://opendatacommunities.org/id/metropolitan-district-council/wolverhampton","702786","Costa Ltd","A-PSI2977271","60.07","Provisions (Resale)","130242131","20/02/2019","Leisure Services","WV Active Catering","R4102"
"Wolverhampton City Council","http://opendatacommunities.org/id/metropolitan-district-council/wolverhampton","702786","Costa Ltd","A-PSI2977271","313.62","Provisions (Resale)","130242131","20/02/2019","Leisure Services","WV Active Catering","R4102"
"Wolverhampton City Council","http://opendatacommunities.org/id/metropolitan-district-council/wolverhampton","702786","Costa Ltd","A-PSI2980293","165.65","Provisions (Resale)","130242134","20/02/2019","Leisure Services","WV Active Catering","R4102"
"Wolverhampton City Council","http://opendatacommunities.org/id/metropolitan-district-council/wolverhampton","702786","Costa Ltd","A-PSI2980293","223.25","Provisions (Resale)","130242134","20/02/2019","Leisure Services","WV Active Catering","R4102"
"Wolverhampton City Council","http://opendatacommunities.org/id/metropolitan-district-council/wolverhampton","702786","Costa Ltd","A-PSI2977335","437.29","Equipment - Purchase","130242132","20/02/2019","Catering","West Park Tea Room","R4000"
"Wolverhampton City Council","http://opendatacommunities.org/id/metropolitan-district-council/wolverhampton","702786","Costa Ltd","A-PSI2977532","1,231.29","Provisions (Resale)","130242133","20/02/2019","Catering","Civic Centre Catering","R4102"
"Wolverhampton City Council","http://opendatacommunities.org/id/metropolitan-district-council/wolverhampton","702786","Costa Ltd","A-PSI2970969","424.94","Provisions (Resale)","130241686","15/02/2019","Leisure Services","WV Active Catering","R4102"
"Wolverhampton City Council","http://opendatacommunities.org/id/metropolitan-district-council/wolverhampton","702786","Costa Ltd","A-PSI2974712","147.23","Provisions (Resale)","130241978","20/02/2019","Leisure Services","Bert Williams Leisure Centre Caf�","R4102"
"Wolverhampton City Council","http://opendatacommunities.org/id/metropolitan-district-council/wolverhampton","702786","Costa Ltd","A-PSI2974712","388.88","Provisions (Resale)","130241978","20/02/2019","Leisure Services","Bert Williams Leisure Centre Caf�","R4102"
"Wolverhampton City Council","http://opendatacommunities.org/id/metropolitan-district-council/wolverhampton","702786","Costa Ltd","A-PSI2970969","123.85","Provisions (Resale)","130241686","15/02/2019","Leisure Services","WV Active Catering","R4102"
"Wolverhampton City Council","http://opendatacommunities.org/id/metropolitan-district-council/wolverhampton","702786","Costa Ltd","A-PSI2977639","226.20","Provisions (Resale)","130242719","20/02/2019","Leisure Services","WV Active Catering","R4102"
"Wolverhampton City Council","http://opendatacommunities.org/id/metropolitan-district-council/wolverhampton","702786","Costa Ltd","A-PSI2977639","194.95","Provisions (Resale)","130242719","20/02/2019","Leisure Services","WV Active Catering","R4102"
"Wolverhampton City Council","http://opendatacommunities.org/id/metropolitan-district-council/wolverhampton","702786","Costa Ltd","A-PSI2893055","1,368.84","Provisions (Resale)","130240916","01/02/2019","Catering","Civic Centre Catering","R4102"
"Wolverhampton City Council","http://opendatacommunities.org/id/metropolitan-district-council/wolverhampton","702786","Costa Ltd","A-PSI2965982","820.59","Provisions (Resale)","130241347","22/02/2019","Catering","Civic Centre Catering","R4102"
"Wolverhampton City Council","http://opendatacommunities.org/id/metropolitan-district-council/wolverhampton","702793","Cottage Blinds Contracts Limited","011683","1,250.00","R&M - Departmental planned (external)","130242310","01/02/2019","Facilities Management","Caretakers Community Centre","R2001"
"Wolverhampton City Council","http://opendatacommunities.org/id/metropolitan-district-council/wolverhampton","702796","Cougar Monitoring Limited","113021","5,100.00","Services - Security","130239975","01/02/2019","Estates and Valuations","Industrial Premises ; Fordhouse Road","R4405"
"Wolverhampton City Council","http://opendatacommunities.org/id/metropolitan-district-council/wolverhampton","702796","Cougar Monitoring Limited","113579","4,680.00","Services - Security","130242889","06/02/2019","Estates and Valuations","Industrial Premises ; Fordhouse Road","R4405"
"Wolverhampton City Council","http://opendatacommunities.org/id/metropolitan-district-council/wolverhampton","702796","Cougar Monitoring Limited","113580","7,680.00","Services - Security","130242890","06/02/2019","Facilities Management","Culwell Street Depot","R4405"
"Wolverhampton City Council","http://opendatacommunities.org/id/metropolitan-district-council/wolverhampton","702796","Cougar Monitoring Limited","113581","7,680.00","Services - Security","130242891","06/02/2019","Facilities Management","Hickman Avenue Depot","R4405"
"Wolverhampton City Council","http://opendatacommunities.org/id/metropolitan-district-council/wolverhampton","702800","Counting Sol Ltd T/A PFM Footfall Intel","20190388","920.00","Services - Fees and Charges","130240488","27/02/2019","Markets","Bilston Market and Licensed Operations","R4401"
"Wolverhampton City Council","http://opendatacommunities.org/id/metropolitan-district-council/wolverhampton","702800","Counting Sol Ltd T/A PFM Footfall Intel","20190388","476.00","Services - Fees and Charges","130240488","27/02/2019","Markets","Bilston Market and Licensed Operations","R4401"
"Wolverhampton City Council","http://opendatacommunities.org/id/metropolitan-district-council/wolverhampton","702810","Courtney-Thorne Limited","SAJ-2018-014906","864.54","Services - Security","130240917","06/02/2019","Maintenance Programme","Civic Centre Repairs & Maintenance","R4405"
"Wolverhampton City Council","http://opendatacommunities.org/id/metropolitan-district-council/wolverhampton","702819","CPAG Limited","SI188197","22.95","Publications","130240194","06/02/2019","Community Financial Support","Welfare Rights","R4310"
"Wolverhampton City Council","http://opendatacommunities.org/id/metropolitan-district-council/wolverhampton","702819","CPAG Limited","SI188161","51.85","Publications","130239979","01/02/2019","Community Financial Support","Macmillan Welfare Rights Service","R4310"
"Wolverhampton City Council","http://opendatacommunities.org/id/metropolitan-district-council/wolverhampton","702819","CPAG Limited","SI188161","33.99","Publications","130239979","01/02/2019","Community Financial Support","Macmillan Welfare Rights Service","R4310"
"Wolverhampton City Council","http://opendatacommunities.org/id/metropolitan-district-council/wolverhampton","702821","Cpl Petroleum","1694930","1,098.40","Heating Oil","130244395","20/02/2019","Highways Maintenance","Patching","R2102"
"Wolverhampton City Council","http://opendatacommunities.org/id/metropolitan-district-council/wolverhampton","702821","Cpl Petroleum","1859014","518.80","Heating Oil","130244396","20/02/2019","Waste and Recycling Service","Shaw Road Civic Amenity Site","R2102"
"Wolverhampton City Council","http://opendatacommunities.org/id/metropolitan-district-council/wolverhampton","702821","Cpl Petroleum","1872568","1,615.86","Inventories","190557573","06/02/2019","-","General Fund Balance Sheet","B3000"
"Wolverhampton City Council","http://opendatacommunities.org/id/metropolitan-district-council/wolverhampton","702821","Cpl Petroleum","1872557","20,040.00","Inventories","190557572","06/02/2019","-","General Fund Balance Sheet","B3000"
"Wolverhampton City Council","http://opendatacommunities.org/id/metropolitan-district-council/wolverhampton","702821","Cpl Petroleum","1872587","19,887.70","Inventories","190557574","06/02/2019","-","General Fund Balance Sheet","B3000"
"Wolverhampton City Council","http://opendatacommunities.org/id/metropolitan-district-council/wolverhampton","702821","Cpl Petroleum","1644886","573.32","Petrol","130244394","20/02/2019","Waste and Recycling Service","Anchor Lane Civic Amenity Site","R3000"
"Wolverhampton City Council","http://opendatacommunities.org/id/metropolitan-district-council/wolverhampton","702821","Cpl Petroleum","1644852","575.62","Heating Oil","130244399","20/02/2019","Waste and Recycling Service","Shaw Road Civic Amenity Site","R2102"
"Wolverhampton City Council","http://opendatacommunities.org/id/metropolitan-district-council/wolverhampton","702821","Cpl Petroleum","1282388","951.36","Heating Oil","130244398","20/02/2019","Waste and Recycling Service","Anchor Lane Civic Amenity Site","R2102"
"Wolverhampton City Council","http://opendatacommunities.org/id/metropolitan-district-council/wolverhampton","702821","Cpl Petroleum","1968279","19,054.54","Inventories","190562046","15/02/2019","-","General Fund Balance Sheet","B3000"
"Wolverhampton City Council","http://opendatacommunities.org/id/metropolitan-district-council/wolverhampton","702821","Cpl Petroleum","1941788","20,055.04","Inventories","190562045","15/02/2019","-","General Fund Balance Sheet","B3000"
"Wolverhampton City Council","http://opendatacommunities.org/id/metropolitan-district-council/wolverhampton","702863","Credential Environmental Limited","018289","50.06","TPP - Waste Disposal","130242311","22/02/2019","Waste and Recycling Service","Waste Collection and Recycling Service - General","R5003"
"Wolverhampton City Council","http://opendatacommunities.org/id/metropolitan-district-council/wolverhampton","702866","Cremation Society Of Great Britain","10416","36.00","Subscriptions","130244933","27/02/2019","Bereavement Services","Cemeteries","R4701"
"Wolverhampton City Council","http://opendatacommunities.org/id/metropolitan-district-council/wolverhampton","702903","CTT (Wolverhampton) Limited","16464","1,615.00","Client Transport","130242892","06/02/2019","Special Educational Needs","Special - Transport","R3042"
"Wolverhampton City Council","http://opendatacommunities.org/id/metropolitan-district-council/wolverhampton","702903","CTT (Wolverhampton) Limited","16465","1,900.00","Client Transport","130242893","06/02/2019","Special Educational Needs","Special - Transport","R3042"
"Wolverhampton City Council","http://opendatacommunities.org/id/metropolitan-district-council/wolverhampton","702903","CTT (Wolverhampton) Limited","16466","1,995.00","Client Transport","130242720","06/02/2019","Special Educational Needs","Special - Transport","R3042"
"Wolverhampton City Council","http://opendatacommunities.org/id/metropolitan-district-council/wolverhampton","702903","CTT (Wolverhampton) Limited","16467","1,805.00","Client Transport","130242894","06/02/2019","Special Educational Needs","Special - Transport","R3042"
"Wolverhampton City Council","http://opendatacommunities.org/id/metropolitan-district-council/wolverhampton","702910","Cummings Brothers","WC534","6.00","Equipment - Purchase","130243159","13/02/2019","Bereavement Services","Cemeteries","R4000"
"Wolverhampton City Council","http://opendatacommunities.org/id/metropolitan-district-council/wolverhampton","702910","Cummings Brothers","WC532","36.00","Materials","130243157","13/02/2019","Environmental Maintenance","Parks - Ranger Service","R4007"
"Wolverhampton City Council","http://opendatacommunities.org/id/metropolitan-district-council/wolverhampton","702910","Cummings Brothers","WC530","777.00","Materials","130243011","13/02/2019","Environmental Maintenance","Ground Maintenance East","R4007"
"Wolverhampton City Council","http://opendatacommunities.org/id/metropolitan-district-council/wolverhampton","702910","Cummings Brothers","WC533","23.00","Materials","130243158","13/02/2019","Environmental Maintenance","Ground Maintenance East","R4007"
"Wolverhampton City Council","http://opendatacommunities.org/id/metropolitan-district-council/wolverhampton","702910","Cummings Brothers","WC529","125.00","R&M - Departmental planned (external)","130242721","08/02/2019","Parking Services","Short Stay - Fold Street","R2001"
"Wolverhampton City Council","http://opendatacommunities.org/id/metropolitan-district-council/wolverhampton","702910","Cummings Brothers","WC523","10.50","Materials","130240920","08/02/2019","Environmental Maintenance","Parks - Ranger Service","R4007"
"Wolverhampton City Council","http://opendatacommunities.org/id/metropolitan-district-council/wolverhampton","702910","Cummings Brothers","WC526","20.00","Equipment - Purchase","130242135","06/02/2019","Bereavement Services","Cemeteries","R4000"
